{"text_format":"1","workbook":"xlsx","n_sheets":17,"sheets":["Taches AF","Résumé","Personnel Detail","Bilan","Compte Budget AEP","Compte Subv ASC","Grand Livre","Banques","OD","Ventes","Achats","Caisse","Plan","Echéancier","NOMS","CALCUL divers","Programme"],"not_rendered":{"charts":0,"images":1,"macros":1,"external_links":0,"defined_names":4,"comments":1,"pivot_tables":3},"unopened":[],"bounds":{"document_bytes":16777216,"sheet_cells":100000,"rows_first":2000,"rows_last":500,"rows_between":2000,"halvings":0,"cell_chars":16384,"cell_head_chars":4096},"cells_cut":0,"cells_raw":0,"read":"whole","date_system":"1900"}

{"sheet":"Taches AF","index":0,"n_rows":0,"n_cols":0,"rows_kept":0,"cut":false,"hidden":true,"merged":[]}

{"sheet":"Résumé","index":1,"n_rows":29,"n_cols":2,"rows_kept":29,"cut":false,"hidden":false,"merged":[]}
["Mise à jour le :","2024-01-26"]
[]
[]
["Compte Subvention ASC à date :",{"$f":"GETPIVOTDATA(\"Diff\",Bilan!$B$3,\"C\",5,\"Compte\",512100)","v":25826.66}]
[]
["Compte Fonctionnement à date :",{"$f":"GETPIVOTDATA(\"Diff\",Bilan!$B$3,\"C\",5,\"Compte\",512101)","v":19292.66}]
[]
["Virement ASC 2024 NESTLE envr",29000]
["Virement AEP vers ASC 10% 2024",1929.3]
[]
[]
[]
["Budget par personne 2024",1500]
["Budget Prev 2024",{"$f":"GETPIVOTDATA(\"S Crédit\",Bilan!$B$3,\"C\",1)","v":39000}]
["Utilisé 2024 à date",{"$f":"GETPIVOTDATA(\"S Débit\",Bilan!$B$3,\"C\",1)","v":0}]
["Reste à payer 2024 / à reporter",{"$f":"B14-B15","v":39000}]
[]
["Activités CSE prévu 2024 ASC :",4000]
[]
["Solde Prev fin 2024 ASC :",{"$f":"B4+B8-B16-B18+B9","v":13755.960000000003}]
[]
[]
["Prev Nombre de salarié 2025",26]
["Prev Budget 2025",{"$f":"B25*B23","v":31200}]
["Prev Budget par personne 2025",1200]
["Prev virement ASC 2025",29000]
["Activités CSE prévu 2025 ASC :",1556]
[]
["Prev Reste fin 2025",{"$f":"B20+B26-B24-B27","v":9999.9600000000064}]

{"sheet":"Personnel Detail","index":2,"n_rows":29,"n_cols":6,"rows_kept":29,"cut":false,"hidden":false,"merged":[]}
[]
[null,null,"NOMS","Budget","Dépenses","Reste AF"]
[null,null,"ANAIS LERUS",1500,null,1500]
[null,null,"Christelle CHOUAN",1500,null,1500]
[null,null,"Eddy LORBEL",1500,null,1500]
[null,null,"EDWIN SANDOT",1500,null,1500]
[null,null,"Emilie GUILLAUME",1500,null,1500]
[null,null,"Eric CHARTON",1500,null,1500]
[null,null,"Geraldine PINOS",1500,null,1500]
[null,null,"Grenelle Triveillot",1500,null,1500]
[null,null,"Guillaume SOULAS",1500,null,1500]
[null,null,"Johanne LONGRAIS",1500,null,1500]
[null,null,"Lydia THALMENSI",1500,null,1500]
[null,null,"Lydie RESON",1500,null,1500]
[null,null,"MAILINE FIDOL",1500,null,1500]
[null,null,"Ma-Ivah BENOIT",1500,null,1500]
[null,null,"Max NOSIBOR",1500,null,1500]
[null,null,"Maxime ANNEQUIN",1500,null,1500]
[null,null,"Mireille ROCHE",1500,null,1500]
[null,null,"Muriel DE GENTIL",1500,null,1500]
[null,null,"Mylene MARTIN",1500,null,1500]
[null,null,"Olivia LAPORAL",1500,null,1500]
[null,null,"Oriane Mayoute",1500,null,1500]
[null,null,"RAISSA LUSINE",1500,null,1500]
[null,null,"Remplaçante Amina",1500,null,1500]
[null,null,"Stephanie LUBIN",1500,null,1500]
[null,null,"Xavier CORBIN",1500,null,1500]
[null,null,"Yohan LASSALLE",1500,null,1500]
[null,null,"Total général",39000,null,39000]

{"sheet":"Bilan","index":3,"n_rows":11,"n_cols":14,"rows_kept":11,"cut":false,"hidden":false,"merged":[]}
[null,null,null,null,null,null,null,null,null,null,"Noms","Eric CHARTON"]
[]
[null,"Étiquettes de lignes","S Débit","S Crédit","Diff",null,null,null,null,null,"Étiquettes de lignes","S Débit","S Crédit","Diff"]
[null,1,null,39000,-39000,null,null,null,null,null,1,375,2000,-1625]
[null,5,45119.32,null,45119.32,null,null,null,null,null,4,375,375,0]
[null,512100,25826.66,null,25826.66,null,null,null,null,null,"Total général",750,2375,-1625]
[null,512101,19292.66,null,19292.66]
[null,6,40500,null,40500]
[null,7,null,45119.32,-45119.32]
[null,"(vide)",null,null,0]
[null,"Total général",85619.32,84119.32,1500]

{"sheet":"Compte Budget AEP","index":4,"n_rows":128,"n_cols":10,"rows_kept":128,"cut":false,"hidden":false,"merged":[]}
["Date opérat.","F","C","Compte","Rèf","Libéllé","Débit","Crédit","Solde","*"]
["2024-01-01",null,null,null,null,"Relevé au 01/01/2024",null,19292.66,{"$f":"+H2","v":19292.66},"*"]
[null,null,null,null,null,null,null,null,{"$f":"I2-G3+H3","v":19292.66}]
[null,null,null,null,null,null,null,null,19292.66]
[null,null,null,null,null,null,null,null,19292.66]
[null,null,null,null,null,null,null,null,19292.66]
[null,null,null,null,null,null,null,null,19292.66]
[null,null,null,null,null,null,null,null,19292.66]
[null,null,null,null,null,null,null,null,19292.66]
[null,null,null,null,null,null,null,null,19292.66]
[null,null,null,null,null,null,null,null,19292.66]
[null,null,null,null,null,null,null,null,19292.66]
[null,null,null,null,null,null,null,null,19292.66]
[null,null,null,null,null,null,null,null,19292.66]
[null,null,null,null,null,null,null,null,19292.66]
[null,null,null,null,null,null,null,null,19292.66]
[null,null,null,null,null,null,null,null,19292.66]
[null,null,null,null,null,null,null,null,19292.66]
[null,null,null,null,null,null,null,null,19292.66]
[null,null,null,null,null,null,null,null,19292.66]
[null,null,null,null,null,null,null,null,19292.66]
[null,null,null,null,null,null,null,null,19292.66]
[null,null,null,null,null,null,null,null,19292.66]
[null,null,null,null,null,null,null,null,19292.66]
[null,null,null,null,null,null,null,null,19292.66]
[null,null,null,null,null,null,null,null,19292.66]
[null,null,null,null,null,null,null,null,19292.66]
[null,null,null,null,null,null,null,null,19292.66]
[null,null,null,null,null,null,null,null,19292.66]
[null,null,null,null,null,null,null,null,19292.66]
[null,null,null,null,null,null,null,null,19292.66]
[null,null,null,null,null,null,null,null,19292.66]
[null,null,null,null,null,null,null,null,19292.66]
[null,null,null,null,null,null,null,null,19292.66]
[null,null,null,null,null,null,null,null,{"$f":"I34-G35+H35","v":19292.66}]
[null,null,null,null,null,null,null,null,19292.66]
[null,null,null,null,null,null,null,null,19292.66]
[null,null,null,null,null,null,null,null,19292.66]
[null,null,null,null,null,null,null,null,19292.66]
[null,null,null,null,null,null,null,null,19292.66]
[null,null,null,null,null,null,null,null,19292.66]
[null,null,null,null,null,null,null,null,19292.66]
[null,null,null,null,null,null,null,null,19292.66]
[null,null,null,null,null,null,null,null,19292.66]
[null,null,null,null,null,null,null,null,19292.66]
[null,null,null,null,null,null,null,null,19292.66]
[null,null,null,null,null,null,null,null,19292.66]
[null,null,null,null,null,null,null,null,19292.66]
[null,null,null,null,null,null,null,null,19292.66]
[null,null,null,null,null,null,null,null,19292.66]
[null,null,null,null,null,null,null,null,19292.66]
[null,null,null,null,null,null,null,null,19292.66]
[null,null,null,null,null,null,null,null,19292.66]
[null,null,null,null,null,null,null,null,19292.66]
[null,null,null,null,null,null,null,null,19292.66]
[null,null,null,null,null,null,null,null,19292.66]
[null,null,null,null,null,null,null,null,19292.66]
[null,null,null,null,null,null,null,null,19292.66]
[null,null,null,null,null,null,null,null,19292.66]
[null,null,null,null,null,null,null,null,19292.66]
[null,null,null,null,null,null,null,null,19292.66]
[null,null,null,null,null,null,null,null,19292.66]
[null,null,null,null,null,null,null,null,19292.66]
[null,null,null,null,null,null,null,null,19292.66]
[null,null,null,null,null,null,null,null,19292.66]
[null,null,null,null,null,null,null,null,19292.66]
[null,null,null,null,null,null,null,null,{"$f":"I66-G67+H67","v":19292.66}]
[null,null,null,null,null,null,null,null,19292.66]
[null,null,null,null,null,null,null,null,19292.66]
[null,null,null,null,null,null,null,null,19292.66]
[null,null,null,null,null,null,null,null,19292.66]
[null,null,null,null,null,null,null,null,19292.66]
[null,null,null,null,null,null,null,null,19292.66]
[null,null,null,null,null,null,null,null,19292.66]
[null,null,null,null,null,null,null,null,19292.66]
[null,null,null,null,null,null,null,null,19292.66]
[null,null,null,null,null,null,null,null,19292.66]
[null,null,null,null,null,null,null,null,19292.66]
[null,null,null,null,null,null,null,null,19292.66]
[null,null,null,null,null,null,null,null,19292.66]
[null,null,null,null,null,null,null,null,19292.66]
[null,null,null,null,null,null,null,null,19292.66]
[null,null,null,null,null,null,null,null,19292.66]
[null,null,null,null,null,null,null,null,19292.66]
[null,null,null,null,null,null,null,null,19292.66]
[null,null,null,null,null,null,null,null,19292.66]
[null,null,null,null,null,null,null,null,19292.66]
[null,null,null,null,null,null,null,null,19292.66]
[null,null,null,null,null,null,null,null,19292.66]
[null,null,null,null,null,null,null,null,19292.66]
[null,null,null,null,null,null,null,null,19292.66]
[null,null,null,null,null,null,null,null,19292.66]
[null,null,null,null,null,null,null,null,19292.66]
[null,null,null,null,null,null,null,null,19292.66]
[null,null,null,null,null,null,null,null,19292.66]
[null,null,null,null,null,null,null,null,19292.66]
[null,null,null,null,null,null,null,null,19292.66]
[null,null,null,null,null,null,null,null,19292.66]
[null,null,null,null,null,null,null,null,{"$f":"I98-G99+H99","v":19292.66}]
[null,null,null,null,null,null,null,null,19292.66]
[null,null,null,null,null,null,null,null,19292.66]
[null,null,null,null,null,null,null,null,19292.66]
[null,null,null,null,null,null,null,null,19292.66]
[null,null,null,null,null,null,null,null,19292.66]
[null,null,null,null,null,null,null,null,19292.66]
[null,null,null,null,null,null,null,null,19292.66]
[null,null,null,null,null,null,null,null,19292.66]
[null,null,null,null,null,null,null,null,19292.66]
[null,null,null,null,null,null,null,null,19292.66]
[null,null,null,null,null,null,null,null,19292.66]
[null,null,null,null,null,null,null,null,19292.66]
[null,null,null,null,null,null,null,null,19292.66]
[null,null,null,null,null,null,null,null,19292.66]
[null,null,null,null,null,null,null,null,19292.66]
[null,null,null,null,null,null,null,null,19292.66]
[null,null,null,null,null,null,null,null,19292.66]
[null,null,null,null,null,null,null,null,19292.66]
[null,null,null,null,null,null,null,null,19292.66]
[null,null,null,null,null,null,null,null,19292.66]
[null,null,null,null,null,null,null,null,19292.66]
[null,null,null,null,null,null,null,null,19292.66]
[null,null,null,null,null,null,null,null,19292.66]
[null,null,null,null,null,null,null,null,19292.66]
[null,null,null,null,null,null,null,null,19292.66]
[null,null,null,null,null,null,null,null,19292.66]
[null,null,null,null,null,null,null,null,19292.66]
[null,null,null,null,null,null,null,null,19292.66]
[null,null,null,null,null,null,null,null,19292.66]

{"sheet":"Compte Subv ASC","index":5,"n_rows":126,"n_cols":12,"rows_kept":126,"cut":false,"hidden":false,"merged":[]}
["Date opérat.","F","C","Compte","Rèf","Libéllé","Débit","Crédit","Solde",null,"Justif","Justif Numérisé"]
["2024-01-01",null,null,null,null,"Relevé au 01/01/2024",null,25826.66,{"$f":"+H2","v":25826.66},"*"]
[null,null,null,null,null,null,null,null,{"$f":"I2-G3+H3","v":25826.66}]
[null,null,null,null,null,null,null,null,25826.66]
[null,null,null,null,null,null,null,null,25826.66]
[null,null,null,null,null,null,null,null,25826.66]
[null,null,null,null,null,null,null,null,25826.66]
[null,null,null,null,null,null,null,null,25826.66]
[null,null,null,null,null,null,null,null,25826.66]
[null,null,null,null,null,null,null,null,25826.66]
[null,null,null,null,null,null,null,null,25826.66]
[null,null,null,null,null,null,null,null,25826.66]
[null,null,null,null,null,null,null,null,25826.66]
[null,null,null,null,null,null,null,null,25826.66]
[null,null,null,null,null,null,null,null,25826.66]
[null,null,null,null,null,null,null,null,25826.66]
[null,null,null,null,null,null,null,null,25826.66]
[null,null,null,null,null,null,null,null,25826.66]
[null,null,null,null,null,null,null,null,25826.66]
[null,null,null,null,null,null,null,null,25826.66]
[null,null,null,null,null,null,null,null,25826.66]
[null,null,null,null,null,null,null,null,25826.66]
[null,null,null,null,null,null,null,null,25826.66]
[null,null,null,null,null,null,null,null,25826.66]
[null,null,null,null,null,null,null,null,25826.66]
[null,null,null,null,null,null,null,null,25826.66]
[null,null,null,null,null,null,null,null,25826.66]
[null,null,null,null,null,null,null,null,25826.66]
[null,null,null,null,null,null,null,null,25826.66]
[null,null,null,null,null,null,null,null,25826.66]
[null,null,null,null,null,null,null,null,25826.66]
[null,null,null,null,null,null,null,null,25826.66]
[null,null,null,null,null,null,null,null,25826.66]
[null,null,null,null,null,null,null,null,25826.66]
[null,null,null,null,null,null,null,null,25826.66]
[null,null,null,null,null,null,null,null,25826.66]
[null,null,null,null,null,null,null,null,25826.66]
[null,null,null,null,null,null,null,null,25826.66]
[null,null,null,null,null,null,null,null,25826.66]
[null,null,null,null,null,null,null,null,25826.66]
[null,null,null,null,null,null,null,null,25826.66]
[null,null,null,null,null,null,null,null,25826.66]
[null,null,null,null,null,null,null,null,25826.66]
[null,null,null,null,null,null,null,null,25826.66]
[null,null,null,null,null,null,null,null,25826.66]
[null,null,null,null,null,null,null,null,25826.66]
[null,null,null,null,null,null,null,null,25826.66]
[null,null,null,null,null,null,null,null,25826.66]
[null,null,null,null,null,null,null,null,25826.66]
[null,null,null,null,null,null,null,null,25826.66]
[null,null,null,null,null,null,null,null,25826.66]
[null,null,null,null,null,null,null,null,25826.66]
[null,null,null,null,null,null,null,null,25826.66]
[null,null,null,null,null,null,null,null,25826.66]
[null,null,null,null,null,null,null,null,25826.66]
[null,null,null,null,null,null,null,null,25826.66]
[null,null,null,null,null,null,null,null,25826.66]
[null,null,null,null,null,null,null,null,25826.66]
[null,null,null,null,null,null,null,null,25826.66]
[null,null,null,null,null,null,null,null,25826.66]
[null,null,null,null,null,null,null,null,25826.66]
[null,null,null,null,null,null,null,null,25826.66]
[null,null,null,null,null,null,null,null,25826.66]
[null,null,null,null,null,null,null,null,25826.66]
[null,null,null,null,null,null,null,null,25826.66]
[null,null,null,null,null,null,null,null,25826.66]
[null,null,null,null,null,null,null,null,{"$f":"I66-G67+H67","v":25826.66}]
[null,null,null,null,null,null,null,null,25826.66]
[null,null,null,null,null,null,null,null,25826.66]
[null,null,null,null,null,null,null,null,25826.66]
[null,null,null,null,null,null,null,null,25826.66]
[null,null,null,null,null,null,null,null,25826.66]
[null,null,null,null,null,null,null,null,25826.66]
[null,null,null,null,null,null,null,null,25826.66]
[null,null,null,null,null,null,null,null,25826.66]
[null,null,null,null,null,null,null,null,25826.66]
[null,null,null,null,null,null,null,null,25826.66]
[null,null,null,null,null,null,null,null,25826.66]
[null,null,null,null,null,null,null,null,25826.66]
[null,null,null,null,null,null,null,null,25826.66]
[null,null,null,null,null,null,null,null,25826.66]
[null,null,null,null,null,null,null,null,25826.66]
[null,null,null,null,null,null,null,null,25826.66]
[null,null,null,null,null,null,null,null,25826.66]
[null,null,null,null,null,null,null,null,25826.66]
[null,null,null,null,null,null,null,null,25826.66]
[null,null,null,null,null,null,null,null,25826.66]
[null,null,null,null,null,null,null,null,25826.66]
[null,null,null,null,null,null,null,null,25826.66]
[null,null,null,null,null,null,null,null,25826.66]
[null,null,null,null,null,null,null,null,25826.66]
[null,null,null,null,null,null,null,null,25826.66]
[null,null,null,null,null,null,null,null,25826.66]
[null,null,null,null,null,null,null,null,25826.66]
[null,null,null,null,null,null,null,null,25826.66]
[null,null,null,null,null,null,null,null,25826.66]
[null,null,null,null,null,null,null,null,25826.66]
[null,null,null,null,null,null,null,null,25826.66]
[null,null,null,null,null,null,null,null,25826.66]
[null,null,null,null,null,null,null,null,25826.66]
[null,null,null,null,null,null,null,null,25826.66]
[null,null,null,null,null,null,null,null,25826.66]
[null,null,null,null,null,null,null,null,25826.66]
[null,null,null,null,null,null,null,null,25826.66]
[null,null,null,null,null,null,null,null,25826.66]
[null,null,null,null,null,null,null,null,25826.66]
[null,null,null,null,null,null,null,null,25826.66]
[null,null,null,null,null,null,null,null,25826.66]
[null,null,null,null,null,null,null,null,25826.66]
[null,null,null,null,null,null,null,null,25826.66]
[null,null,null,null,null,null,null,null,25826.66]
[null,null,null,null,null,null,null,null,25826.66]
[null,null,null,null,null,null,null,null,25826.66]
[null,null,null,null,null,null,null,null,25826.66]
[null,null,null,null,null,null,null,null,25826.66]
[null,null,null,null,null,null,null,null,25826.66]
[null,null,null,null,null,null,null,null,25826.66]
[null,null,null,null,null,null,null,null,25826.66]
[null,null,null,null,null,null,null,null,25826.66]
[null,null,null,null,null,null,null,null,25826.66]
[null,null,null,null,null,null,null,null,25826.66]
[null,null,null,null,null,null,null,null,25826.66]
[null,null,null,null,null,null,null,null,25826.66]
[null,null,null,null,null,null,null,null,25826.66]
[null,null,null,null,null,null,null,null,25826.66]
[null,null,null,null,null,null,null,null,25826.66]

{"sheet":"Grand Livre","index":6,"n_rows":753,"n_cols":11,"rows_kept":753,"cut":false,"hidden":false,"merged":[]}
["Date opérat.","F","C","Compte","Rèf","Libéllé","Débit","Crédit","Solde","Noms"]
["2024-01-01",null,5,512101,null,"Subvention de fonctionnement reçue l’employeur",19292.66,null,null,{"$f":"VLOOKUP(D2,NOMS!$A:$B,2,FALSE)","v":{"$error":"#N/A"}}]
["2024-01-01",null,7,756010,null,"Subvention de fonctionnement reçue l’employeur",null,19292.66,null,{"$f":"VLOOKUP(D3,NOMS!$A:$B,2,FALSE)","v":{"$error":"#N/A"}}]
["2024-01-01",null,5,512100,null,"Contribution ASC reçue de l’employeur",25826.66,null,null,{"$f":"VLOOKUP(D4,NOMS!$A:$B,2,FALSE)","v":{"$error":"#N/A"}}]
["2024-01-01",null,7,756020,null,"Contribution ASC reçue de l’employeur",null,25826.66,null,{"$f":"VLOOKUP(D5,NOMS!$A:$B,2,FALSE)","v":{"$error":"#N/A"}}]
[null,null,null,null,null,null,null,null,null,{"$f":"VLOOKUP(D6,NOMS!$A:$B,2,FALSE)","v":{"$error":"#N/A"}}]
[null,null,null,null,null,null,null,null,null,{"$f":"VLOOKUP(D7,NOMS!$A:$B,2,FALSE)","v":{"$error":"#N/A"}}]
[null,null,null,null,null,null,null,null,null,{"$f":"VLOOKUP(D8,NOMS!$A:$B,2,FALSE)","v":{"$error":"#N/A"}}]
["2024-01-01",null,6,681500,null,"Provision Budget ASC 2022",40500,null,null,{"$f":"VLOOKUP(D9,NOMS!$A:$B,2,FALSE)","v":{"$error":"#N/A"}}]
["2023-01-01",null,1,155001,"Budget ASC 2022","Provision Budget ASC 2022",null,1500,null,{"$f":"VLOOKUP(D10,NOMS!$A:$B,2,FALSE)","v":"Yohan LASSALLE"}]
["2023-01-01",null,1,155002,"Budget ASC 2022","Provision Budget ASC 2022",null,1500,null,{"$f":"VLOOKUP(D11,NOMS!$A:$B,2,FALSE)","v":"Eric CHARTON"}]
["2023-01-01",null,1,155003,"Budget ASC 2022","Provision Budget ASC 2022",null,1500,null,{"$f":"VLOOKUP(D12,NOMS!$A:$B,2,FALSE)","v":"Lydie RESON"}]
["2023-01-01",null,1,155004,"Budget ASC 2022","Provision Budget ASC 2022",null,1500,null,{"$f":"VLOOKUP(D13,NOMS!$A:$B,2,FALSE)","v":"Muriel DE GENTIL"}]
["2023-01-01",null,1,155005,"Budget ASC 2022","Provision Budget ASC 2022",null,1500,null,{"$f":"VLOOKUP(D14,NOMS!$A:$B,2,FALSE)","v":"Oriane Mayoute"}]
["2023-01-01",null,1,155007,"Budget ASC 2022","Provision Budget ASC 2022",null,1500,null,{"$f":"VLOOKUP(D15,NOMS!$A:$B,2,FALSE)","v":"Geraldine PINOS"}]
["2023-01-01",null,1,155008,"Budget ASC 2022","Provision Budget ASC 2022",null,1500,null,{"$f":"VLOOKUP(D16,NOMS!$A:$B,2,FALSE)","v":"Stephanie LUBIN"}]
["2023-01-01",null,1,155009,"Budget ASC 2022","Provision Budget ASC 2022",null,1500,null,{"$f":"VLOOKUP(D17,NOMS!$A:$B,2,FALSE)","v":"Eddy LORBEL"}]
["2023-01-01",null,1,155010,"Budget ASC 2022","Provision Budget ASC 2022",null,1500,null,{"$f":"VLOOKUP(D18,NOMS!$A:$B,2,FALSE)","v":"Olivia LAPORAL"}]
["2023-01-01",null,1,155011,"Budget ASC 2022","Provision Budget ASC 2022",null,1500,null,{"$f":"VLOOKUP(D19,NOMS!$A:$B,2,FALSE)","v":"Ma-Ivah BENOIT"}]
["2023-01-01",null,1,155012,"Budget ASC 2022","Provision Budget ASC 2022",null,1500,null,{"$f":"VLOOKUP(D20,NOMS!$A:$B,2,FALSE)","v":"Lydia THALMENSI"}]
["2023-01-01",null,1,155013,"Budget ASC 2022","Provision Budget ASC 2022",null,1500,null,{"$f":"VLOOKUP(D21,NOMS!$A:$B,2,FALSE)","v":"Christelle CHOUAN"}]
["2023-01-01",null,1,155015,"Budget ASC 2022","Provision Budget ASC 2022",null,1500,null,{"$f":"VLOOKUP(D22,NOMS!$A:$B,2,FALSE)","v":"Mireille ROCHE"}]
["2023-01-01",null,1,155017,"Budget ASC 2022","Provision Budget ASC 2022",null,1500,null,{"$f":"VLOOKUP(D23,NOMS!$A:$B,2,FALSE)","v":"RAISSA LUSINE"}]
["2023-01-01",null,1,155018,"Budget ASC 2022","Provision Budget ASC 2022",null,1500,null,{"$f":"VLOOKUP(D24,NOMS!$A:$B,2,FALSE)","v":"Xavier CORBIN"}]
["2023-01-01",null,1,155019,"Budget ASC 2022","Provision Budget ASC 2022",null,1500,null,{"$f":"VLOOKUP(D25,NOMS!$A:$B,2,FALSE)","v":"Mylene MARTIN"}]
["2023-01-01",null,1,155020,"Budget ASC 2022","Provision Budget ASC 2022",null,1500,null,{"$f":"VLOOKUP(D26,NOMS!$A:$B,2,FALSE)","v":"Johanne LONGRAIS"}]
["2023-01-01",null,1,155021,"Budget ASC 2022","Provision Budget ASC 2022",null,1500,null,{"$f":"VLOOKUP(D27,NOMS!$A:$B,2,FALSE)","v":"Max NOSIBOR"}]
["2023-01-01",null,1,155022,"Budget ASC 2022","Provision Budget ASC 2022",null,1500,null,{"$f":"VLOOKUP(D28,NOMS!$A:$B,2,FALSE)","v":"Maxime ANNEQUIN"}]
["2023-01-01",null,1,155023,"Budget ASC 2022","Provision Budget ASC 2022",null,1500,null,{"$f":"VLOOKUP(D29,NOMS!$A:$B,2,FALSE)","v":"ANAIS LERUS"}]
["2023-01-01",null,1,155025,"Budget ASC 2022","Provision Budget ASC 2022",null,1500,null,{"$f":"VLOOKUP(D30,NOMS!$A:$B,2,FALSE)","v":"EDWIN SANDOT"}]
["2023-01-01",null,1,155027,"Budget ASC 2022","Provision Budget ASC 2022",null,1500,null,{"$f":"VLOOKUP(D31,NOMS!$A:$B,2,FALSE)","v":"Guillaume SOULAS"}]
["2023-01-01",null,1,155029,"Budget ASC 2022","Provision Budget ASC 2022",null,1500,null,{"$f":"VLOOKUP(D32,NOMS!$A:$B,2,FALSE)","v":"Grenelle Triveillot"}]
["2023-01-01",null,1,155030,"Budget ASC 2022","Provision Budget ASC 2022",null,1500,null,{"$f":"VLOOKUP(D33,NOMS!$A:$B,2,FALSE)","v":"MAILINE FIDOL"}]
["2023-01-01",null,1,155031,"Budget ASC 2022","Provision Budget ASC 2022",null,1500,null,{"$f":"VLOOKUP(D34,NOMS!$A:$B,2,FALSE)","v":"Emilie GUILLAUME"}]
["2023-01-01",null,1,155032,"Budget ASC 2022","Provision Budget ASC 2022",null,1500,null,{"$f":"VLOOKUP(D35,NOMS!$A:$B,2,FALSE)","v":"Remplaçante Amina"}]
[null,null,null,null,null,null,null,null,null,{"$f":"VLOOKUP(D36,NOMS!$A:$B,2,FALSE)","v":{"$error":"#N/A"}}]
[null,null,null,null,null,null,null,null,null,{"$f":"VLOOKUP(D37,NOMS!$A:$B,2,FALSE)","v":{"$error":"#N/A"}}]
[null,null,null,null,null,null,null,null,null,{"$f":"VLOOKUP(D38,NOMS!$A:$B,2,FALSE)","v":{"$error":"#N/A"}}]
[null,null,null,null,null,null,null,null,null,{"$f":"VLOOKUP(D39,NOMS!$A:$B,2,FALSE)","v":{"$error":"#N/A"}}]
[null,null,null,null,null,null,null,null,null,{"$f":"VLOOKUP(D40,NOMS!$A:$B,2,FALSE)","v":{"$error":"#N/A"}}]
[null,null,null,null,null,null,null,null,null,{"$f":"VLOOKUP(D41,NOMS!$A:$B,2,FALSE)","v":{"$error":"#N/A"}}]
[null,null,null,null,null,null,null,null,null,{"$f":"VLOOKUP(D42,NOMS!$A:$B,2,FALSE)","v":{"$error":"#N/A"}}]
[null,null,null,null,null,null,null,null,null,{"$f":"VLOOKUP(D43,NOMS!$A:$B,2,FALSE)","v":{"$error":"#N/A"}}]
[null,null,null,null,null,null,null,null,null,{"$f":"VLOOKUP(D44,NOMS!$A:$B,2,FALSE)","v":{"$error":"#N/A"}}]
[null,null,null,null,null,null,null,null,null,{"$f":"VLOOKUP(D45,NOMS!$A:$B,2,FALSE)","v":{"$error":"#N/A"}}]
[null,null,null,null,null,null,null,null,null,{"$f":"VLOOKUP(D46,NOMS!$A:$B,2,FALSE)","v":{"$error":"#N/A"}}]
[null,null,null,null,null,null,null,null,null,{"$f":"VLOOKUP(D47,NOMS!$A:$B,2,FALSE)","v":{"$error":"#N/A"}}]
[null,null,null,null,null,null,null,null,null,{"$f":"VLOOKUP(D48,NOMS!$A:$B,2,FALSE)","v":{"$error":"#N/A"}}]
[null,null,null,null,null,null,null,null,null,{"$f":"VLOOKUP(D49,NOMS!$A:$B,2,FALSE)","v":{"$error":"#N/A"}}]
[null,null,null,null,null,null,null,null,null,{"$f":"VLOOKUP(D50,NOMS!$A:$B,2,FALSE)","v":{"$error":"#N/A"}}]
[null,null,null,null,null,null,null,null,null,{"$f":"VLOOKUP(D51,NOMS!$A:$B,2,FALSE)","v":{"$error":"#N/A"}}]
[null,null,null,null,null,null,null,null,null,{"$f":"VLOOKUP(D52,NOMS!$A:$B,2,FALSE)","v":{"$error":"#N/A"}}]
[null,null,null,null,null,null,null,null,null,{"$f":"VLOOKUP(D53,NOMS!$A:$B,2,FALSE)","v":{"$error":"#N/A"}}]
[null,null,null,null,null,null,null,null,null,{"$f":"VLOOKUP(D54,NOMS!$A:$B,2,FALSE)","v":{"$error":"#N/A"}}]
[null,null,null,null,null,null,null,null,null,{"$f":"VLOOKUP(D55,NOMS!$A:$B,2,FALSE)","v":{"$error":"#N/A"}}]
[null,null,null,null,null,null,null,null,null,{"$f":"VLOOKUP(D56,NOMS!$A:$B,2,FALSE)","v":{"$error":"#N/A"}}]
[null,null,null,null,null,null,null,null,null,{"$f":"VLOOKUP(D57,NOMS!$A:$B,2,FALSE)","v":{"$error":"#N/A"}}]
[null,null,null,null,null,null,null,null,null,{"$f":"VLOOKUP(D58,NOMS!$A:$B,2,FALSE)","v":{"$error":"#N/A"}}]
[null,null,null,null,null,null,null,null,null,{"$f":"VLOOKUP(D59,NOMS!$A:$B,2,FALSE)","v":{"$error":"#N/A"}}]
[null,null,null,null,null,null,null,null,null,{"$f":"VLOOKUP(D60,NOMS!$A:$B,2,FALSE)","v":{"$error":"#N/A"}}]
[null,null,null,null,null,null,null,null,null,{"$f":"VLOOKUP(D61,NOMS!$A:$B,2,FALSE)","v":{"$error":"#N/A"}}]
[null,null,null,null,null,null,null,null,null,{"$f":"VLOOKUP(D62,NOMS!$A:$B,2,FALSE)","v":{"$error":"#N/A"}}]
[null,null,null,null,null,null,null,null,null,{"$f":"VLOOKUP(D63,NOMS!$A:$B,2,FALSE)","v":{"$error":"#N/A"}}]
[null,null,null,null,null,null,null,null,null,{"$f":"VLOOKUP(D64,NOMS!$A:$B,2,FALSE)","v":{"$error":"#N/A"}}]
[null,null,null,null,null,null,null,null,null,{"$f":"VLOOKUP(D65,NOMS!$A:$B,2,FALSE)","v":{"$error":"#N/A"}}]
[null,null,null,null,null,null,null,null,null,{"$f":"VLOOKUP(D66,NOMS!$A:$B,2,FALSE)","v":{"$error":"#N/A"}}]
[null,null,null,null,null,null,null,null,null,{"$f":"VLOOKUP(D67,NOMS!$A:$B,2,FALSE)","v":{"$error":"#N/A"}}]
[null,null,null,null,null,null,null,null,null,{"$f":"VLOOKUP(D68,NOMS!$A:$B,2,FALSE)","v":{"$error":"#N/A"}}]
[null,null,null,null,null,null,null,null,null,{"$f":"VLOOKUP(D69,NOMS!$A:$B,2,FALSE)","v":{"$error":"#N/A"}}]
[null,null,null,null,null,null,null,null,null,{"$f":"VLOOKUP(D70,NOMS!$A:$B,2,FALSE)","v":{"$error":"#N/A"}}]
[null,null,null,null,null,null,null,null,null,{"$f":"VLOOKUP(D71,NOMS!$A:$B,2,FALSE)","v":{"$error":"#N/A"}}]
[null,null,null,null,null,null,null,null,null,{"$f":"VLOOKUP(D72,NOMS!$A:$B,2,FALSE)","v":{"$error":"#N/A"}}]
[null,null,null,null,null,null,null,null,null,{"$f":"VLOOKUP(D73,NOMS!$A:$B,2,FALSE)","v":{"$error":"#N/A"}}]
[null,null,null,null,null,null,null,null,null,{"$f":"VLOOKUP(D74,NOMS!$A:$B,2,FALSE)","v":{"$error":"#N/A"}}]
[null,null,null,null,null,null,null,null,null,{"$f":"VLOOKUP(D75,NOMS!$A:$B,2,FALSE)","v":{"$error":"#N/A"}}]
[null,null,null,null,null,null,null,null,null,{"$f":"VLOOKUP(D76,NOMS!$A:$B,2,FALSE)","v":{"$error":"#N/A"}}]
[null,null,null,null,null,null,null,null,null,{"$f":"VLOOKUP(D77,NOMS!$A:$B,2,FALSE)","v":{"$error":"#N/A"}}]
[null,null,null,null,null,null,null,null,null,{"$f":"VLOOKUP(D78,NOMS!$A:$B,2,FALSE)","v":{"$error":"#N/A"}}]
[null,null,null,null,null,null,null,null,null,{"$f":"VLOOKUP(D79,NOMS!$A:$B,2,FALSE)","v":{"$error":"#N/A"}}]
[null,null,null,null,null,null,null,null,null,{"$f":"VLOOKUP(D80,NOMS!$A:$B,2,FALSE)","v":{"$error":"#N/A"}}]
[null,null,null,null,null,null,null,null,null,{"$f":"VLOOKUP(D81,NOMS!$A:$B,2,FALSE)","v":{"$error":"#N/A"}}]
[null,null,null,null,null,null,null,null,null,{"$f":"VLOOKUP(D82,NOMS!$A:$B,2,FALSE)","v":{"$error":"#N/A"}}]
[null,null,null,null,null,null,null,null,null,{"$f":"VLOOKUP(D83,NOMS!$A:$B,2,FALSE)","v":{"$error":"#N/A"}}]
[null,null,null,null,null,null,null,null,null,{"$f":"VLOOKUP(D84,NOMS!$A:$B,2,FALSE)","v":{"$error":"#N/A"}}]
[null,null,null,null,null,null,null,null,null,{"$f":"VLOOKUP(D85,NOMS!$A:$B,2,FALSE)","v":{"$error":"#N/A"}}]
[null,null,null,null,null,null,null,null,null,{"$f":"VLOOKUP(D86,NOMS!$A:$B,2,FALSE)","v":{"$error":"#N/A"}}]
[null,null,null,null,null,null,null,null,null,{"$f":"VLOOKUP(D87,NOMS!$A:$B,2,FALSE)","v":{"$error":"#N/A"}}]
[null,null,null,null,null,null,null,null,null,{"$f":"VLOOKUP(D88,NOMS!$A:$B,2,FALSE)","v":{"$error":"#N/A"}}]
[null,null,null,null,null,null,null,null,null,{"$f":"VLOOKUP(D89,NOMS!$A:$B,2,FALSE)","v":{"$error":"#N/A"}}]
[null,null,null,null,null,null,null,null,null,{"$f":"VLOOKUP(D90,NOMS!$A:$B,2,FALSE)","v":{"$error":"#N/A"}}]
[null,null,null,null,null,null,null,null,null,{"$f":"VLOOKUP(D91,NOMS!$A:$B,2,FALSE)","v":{"$error":"#N/A"}}]
[null,null,null,null,null,null,null,null,null,{"$f":"VLOOKUP(D92,NOMS!$A:$B,2,FALSE)","v":{"$error":"#N/A"}}]
[null,null,null,null,null,null,null,null,null,{"$f":"VLOOKUP(D93,NOMS!$A:$B,2,FALSE)","v":{"$error":"#N/A"}}]
[null,null,null,null,null,null,null,null,null,{"$f":"VLOOKUP(D94,NOMS!$A:$B,2,FALSE)","v":{"$error":"#N/A"}}]
[null,null,null,null,null,null,null,null,null,{"$f":"VLOOKUP(D95,NOMS!$A:$B,2,FALSE)","v":{"$error":"#N/A"}}]
[null,null,null,null,null,null,null,null,null,{"$f":"VLOOKUP(D96,NOMS!$A:$B,2,FALSE)","v":{"$error":"#N/A"}}]
[null,null,null,null,null,null,null,null,null,{"$f":"VLOOKUP(D97,NOMS!$A:$B,2,FALSE)","v":{"$error":"#N/A"}}]
[null,null,null,null,null,null,null,null,null,{"$f":"VLOOKUP(D98,NOMS!$A:$B,2,FALSE)","v":{"$error":"#N/A"}}]
[null,null,null,null,null,null,null,null,null,{"$f":"VLOOKUP(D99,NOMS!$A:$B,2,FALSE)","v":{"$error":"#N/A"}}]
[null,null,null,null,null,null,null,null,null,{"$f":"VLOOKUP(D100,NOMS!$A:$B,2,FALSE)","v":{"$error":"#N/A"}}]
[null,null,null,null,null,null,null,null,null,{"$f":"VLOOKUP(D101,NOMS!$A:$B,2,FALSE)","v":{"$error":"#N/A"}}]
[null,null,null,null,null,null,null,null,null,{"$f":"VLOOKUP(D102,NOMS!$A:$B,2,FALSE)","v":{"$error":"#N/A"}}]
[null,null,null,null,null,null,null,null,null,{"$f":"VLOOKUP(D103,NOMS!$A:$B,2,FALSE)","v":{"$error":"#N/A"}}]
[null,null,null,null,null,null,null,null,null,{"$f":"VLOOKUP(D104,NOMS!$A:$B,2,FALSE)","v":{"$error":"#N/A"}}]
[null,null,null,null,null,null,null,null,null,{"$f":"VLOOKUP(D105,NOMS!$A:$B,2,FALSE)","v":{"$error":"#N/A"}}]
[null,null,null,null,null,null,null,null,null,{"$f":"VLOOKUP(D106,NOMS!$A:$B,2,FALSE)","v":{"$error":"#N/A"}}]
[null,null,null,null,null,null,null,null,null,{"$f":"VLOOKUP(D107,NOMS!$A:$B,2,FALSE)","v":{"$error":"#N/A"}}]
[null,null,null,null,null,null,null,null,null,{"$f":"VLOOKUP(D108,NOMS!$A:$B,2,FALSE)","v":{"$error":"#N/A"}}]
[null,null,null,null,null,null,null,null,null,{"$f":"VLOOKUP(D109,NOMS!$A:$B,2,FALSE)","v":{"$error":"#N/A"}}]
[null,null,null,null,null,null,null,null,null,{"$f":"VLOOKUP(D110,NOMS!$A:$B,2,FALSE)","v":{"$error":"#N/A"}}]
[null,null,null,null,null,null,null,null,null,{"$f":"VLOOKUP(D111,NOMS!$A:$B,2,FALSE)","v":{"$error":"#N/A"}}]
[null,null,null,null,null,null,null,null,null,{"$f":"VLOOKUP(D112,NOMS!$A:$B,2,FALSE)","v":{"$error":"#N/A"}}]
[null,null,null,null,null,null,null,null,null,{"$f":"VLOOKUP(D113,NOMS!$A:$B,2,FALSE)","v":{"$error":"#N/A"}}]
[null,null,null,null,null,null,null,null,null,{"$f":"VLOOKUP(D114,NOMS!$A:$B,2,FALSE)","v":{"$error":"#N/A"}}]
[null,null,null,null,null,null,null,null,null,{"$f":"VLOOKUP(D115,NOMS!$A:$B,2,FALSE)","v":{"$error":"#N/A"}}]
[null,null,null,null,null,null,null,null,null,{"$f":"VLOOKUP(D116,NOMS!$A:$B,2,FALSE)","v":{"$error":"#N/A"}}]
[null,null,null,null,null,null,null,null,null,{"$f":"VLOOKUP(D117,NOMS!$A:$B,2,FALSE)","v":{"$error":"#N/A"}}]
[null,null,null,null,null,null,null,null,null,{"$f":"VLOOKUP(D118,NOMS!$A:$B,2,FALSE)","v":{"$error":"#N/A"}}]
[null,null,null,null,null,null,null,null,null,{"$f":"VLOOKUP(D119,NOMS!$A:$B,2,FALSE)","v":{"$error":"#N/A"}}]
[null,null,null,null,null,null,null,null,null,{"$f":"VLOOKUP(D120,NOMS!$A:$B,2,FALSE)","v":{"$error":"#N/A"}}]
[null,null,null,null,null,null,null,null,null,{"$f":"VLOOKUP(D121,NOMS!$A:$B,2,FALSE)","v":{"$error":"#N/A"}}]
[null,null,null,null,null,null,null,null,null,{"$f":"VLOOKUP(D122,NOMS!$A:$B,2,FALSE)","v":{"$error":"#N/A"}}]
[null,null,null,null,null,null,null,null,null,{"$f":"VLOOKUP(D123,NOMS!$A:$B,2,FALSE)","v":{"$error":"#N/A"}}]
[null,null,null,null,null,null,null,null,null,{"$f":"VLOOKUP(D124,NOMS!$A:$B,2,FALSE)","v":{"$error":"#N/A"}}]
[null,null,null,null,null,null,null,null,null,{"$f":"VLOOKUP(D125,NOMS!$A:$B,2,FALSE)","v":{"$error":"#N/A"}}]
[null,null,null,null,null,null,null,null,null,{"$f":"VLOOKUP(D126,NOMS!$A:$B,2,FALSE)","v":{"$error":"#N/A"}}]
[null,null,null,null,null,null,null,null,null,{"$f":"VLOOKUP(D127,NOMS!$A:$B,2,FALSE)","v":{"$error":"#N/A"}}]
[null,null,null,null,null,null,null,null,null,{"$f":"VLOOKUP(D128,NOMS!$A:$B,2,FALSE)","v":{"$error":"#N/A"}}]
[null,null,null,null,null,null,null,null,null,{"$f":"VLOOKUP(D129,NOMS!$A:$B,2,FALSE)","v":{"$error":"#N/A"}}]
[null,null,null,null,null,null,null,null,null,{"$f":"VLOOKUP(D130,NOMS!$A:$B,2,FALSE)","v":{"$error":"#N/A"}}]
[null,null,null,null,null,null,null,null,null,{"$f":"VLOOKUP(D131,NOMS!$A:$B,2,FALSE)","v":{"$error":"#N/A"}}]
[null,null,null,null,null,null,null,null,null,{"$f":"VLOOKUP(D132,NOMS!$A:$B,2,FALSE)","v":{"$error":"#N/A"}}]
[null,null,null,null,null,null,null,null,null,{"$f":"VLOOKUP(D133,NOMS!$A:$B,2,FALSE)","v":{"$error":"#N/A"}}]
[null,null,null,null,null,null,null,null,null,{"$f":"VLOOKUP(D134,NOMS!$A:$B,2,FALSE)","v":{"$error":"#N/A"}}]
[null,null,null,null,null,null,null,null,null,{"$f":"VLOOKUP(D135,NOMS!$A:$B,2,FALSE)","v":{"$error":"#N/A"}}]
[null,null,null,null,null,null,null,null,null,{"$f":"VLOOKUP(D136,NOMS!$A:$B,2,FALSE)","v":{"$error":"#N/A"}}]
[null,null,null,null,null,null,null,null,null,{"$f":"VLOOKUP(D137,NOMS!$A:$B,2,FALSE)","v":{"$error":"#N/A"}}]
[null,null,null,null,null,null,null,null,null,{"$f":"VLOOKUP(D138,NOMS!$A:$B,2,FALSE)","v":{"$error":"#N/A"}}]
[null,null,null,null,null,null,null,null,null,{"$f":"VLOOKUP(D139,NOMS!$A:$B,2,FALSE)","v":{"$error":"#N/A"}}]
[null,null,null,null,null,null,null,null,null,{"$f":"VLOOKUP(D140,NOMS!$A:$B,2,FALSE)","v":{"$error":"#N/A"}}]
[null,null,null,null,null,null,null,null,null,{"$f":"VLOOKUP(D141,NOMS!$A:$B,2,FALSE)","v":{"$error":"#N/A"}}]
[null,null,null,null,null,null,null,null,null,{"$f":"VLOOKUP(D142,NOMS!$A:$B,2,FALSE)","v":{"$error":"#N/A"}}]
[null,null,null,null,null,null,null,null,null,{"$f":"VLOOKUP(D143,NOMS!$A:$B,2,FALSE)","v":{"$error":"#N/A"}}]
[null,null,null,null,null,null,null,null,null,{"$f":"VLOOKUP(D144,NOMS!$A:$B,2,FALSE)","v":{"$error":"#N/A"}}]
[null,null,null,null,null,null,null,null,null,{"$f":"VLOOKUP(D145,NOMS!$A:$B,2,FALSE)","v":{"$error":"#N/A"}}]
[null,null,null,null,null,null,null,null,null,{"$f":"VLOOKUP(D146,NOMS!$A:$B,2,FALSE)","v":{"$error":"#N/A"}}]
[null,null,null,null,null,null,null,null,null,{"$f":"VLOOKUP(D147,NOMS!$A:$B,2,FALSE)","v":{"$error":"#N/A"}}]
[null,null,null,null,null,null,null,null,null,{"$f":"VLOOKUP(D148,NOMS!$A:$B,2,FALSE)","v":{"$error":"#N/A"}}]
[null,null,null,null,null,null,null,null,null,{"$f":"VLOOKUP(D149,NOMS!$A:$B,2,FALSE)","v":{"$error":"#N/A"}}]
[null,null,null,null,null,null,null,null,null,{"$f":"VLOOKUP(D150,NOMS!$A:$B,2,FALSE)","v":{"$error":"#N/A"}}]
[null,null,null,null,null,null,null,null,null,{"$f":"VLOOKUP(D151,NOMS!$A:$B,2,FALSE)","v":{"$error":"#N/A"}}]
[null,null,null,null,null,null,null,null,null,{"$f":"VLOOKUP(D152,NOMS!$A:$B,2,FALSE)","v":{"$error":"#N/A"}}]
[null,null,null,null,null,null,null,null,null,{"$f":"VLOOKUP(D153,NOMS!$A:$B,2,FALSE)","v":{"$error":"#N/A"}}]
[null,null,null,null,null,null,null,null,null,{"$f":"VLOOKUP(D154,NOMS!$A:$B,2,FALSE)","v":{"$error":"#N/A"}}]
[null,null,null,null,null,null,null,null,null,{"$f":"VLOOKUP(D155,NOMS!$A:$B,2,FALSE)","v":{"$error":"#N/A"}}]
[null,null,null,null,null,null,null,null,null,{"$f":"VLOOKUP(D156,NOMS!$A:$B,2,FALSE)","v":{"$error":"#N/A"}}]
[null,null,null,null,null,null,null,null,null,{"$f":"VLOOKUP(D157,NOMS!$A:$B,2,FALSE)","v":{"$error":"#N/A"}}]
[null,null,null,null,null,null,null,null,null,{"$f":"VLOOKUP(D158,NOMS!$A:$B,2,FALSE)","v":{"$error":"#N/A"}}]
[null,null,null,null,null,null,null,null,null,{"$f":"VLOOKUP(D159,NOMS!$A:$B,2,FALSE)","v":{"$error":"#N/A"}}]
[null,null,null,null,null,null,null,null,null,{"$f":"VLOOKUP(D160,NOMS!$A:$B,2,FALSE)","v":{"$error":"#N/A"}}]
[null,null,null,null,null,null,null,null,null,{"$f":"VLOOKUP(D161,NOMS!$A:$B,2,FALSE)","v":{"$error":"#N/A"}}]
[null,null,null,null,null,null,null,null,null,{"$f":"VLOOKUP(D162,NOMS!$A:$B,2,FALSE)","v":{"$error":"#N/A"}}]
[null,null,null,null,null,null,null,null,null,{"$f":"VLOOKUP(D163,NOMS!$A:$B,2,FALSE)","v":{"$error":"#N/A"}}]
[null,null,null,null,null,null,null,null,null,{"$f":"VLOOKUP(D164,NOMS!$A:$B,2,FALSE)","v":{"$error":"#N/A"}}]
[null,null,null,null,null,null,null,null,null,{"$f":"VLOOKUP(D165,NOMS!$A:$B,2,FALSE)","v":{"$error":"#N/A"}}]
[null,null,null,null,null,null,null,null,null,{"$f":"VLOOKUP(D166,NOMS!$A:$B,2,FALSE)","v":{"$error":"#N/A"}}]
[null,null,null,null,null,null,null,null,null,{"$f":"VLOOKUP(D167,NOMS!$A:$B,2,FALSE)","v":{"$error":"#N/A"}}]
[null,null,null,null,null,null,null,null,null,{"$f":"VLOOKUP(D168,NOMS!$A:$B,2,FALSE)","v":{"$error":"#N/A"}}]
[null,null,null,null,null,null,null,null,null,{"$f":"VLOOKUP(D169,NOMS!$A:$B,2,FALSE)","v":{"$error":"#N/A"}}]
[null,null,null,null,null,null,null,null,null,{"$f":"VLOOKUP(D170,NOMS!$A:$B,2,FALSE)","v":{"$error":"#N/A"}}]
[null,null,null,null,null,null,null,null,null,{"$f":"VLOOKUP(D171,NOMS!$A:$B,2,FALSE)","v":{"$error":"#N/A"}}]
[null,null,null,null,null,null,null,null,null,{"$f":"VLOOKUP(D172,NOMS!$A:$B,2,FALSE)","v":{"$error":"#N/A"}}]
[null,null,null,null,null,null,null,null,null,{"$f":"VLOOKUP(D173,NOMS!$A:$B,2,FALSE)","v":{"$error":"#N/A"}}]
[null,null,null,null,null,null,null,null,null,{"$f":"VLOOKUP(D174,NOMS!$A:$B,2,FALSE)","v":{"$error":"#N/A"}}]
[null,null,null,null,null,null,null,null,null,{"$f":"VLOOKUP(D175,NOMS!$A:$B,2,FALSE)","v":{"$error":"#N/A"}}]
[null,null,null,null,null,null,null,null,null,{"$f":"VLOOKUP(D176,NOMS!$A:$B,2,FALSE)","v":{"$error":"#N/A"}}]
[null,null,null,null,null,null,null,null,null,{"$f":"VLOOKUP(D177,NOMS!$A:$B,2,FALSE)","v":{"$error":"#N/A"}}]
[null,null,null,null,null,null,null,null,null,{"$f":"VLOOKUP(D178,NOMS!$A:$B,2,FALSE)","v":{"$error":"#N/A"}}]
[null,null,null,null,null,null,null,null,null,{"$f":"VLOOKUP(D179,NOMS!$A:$B,2,FALSE)","v":{"$error":"#N/A"}}]
[null,null,null,null,null,null,null,null,null,{"$f":"VLOOKUP(D180,NOMS!$A:$B,2,FALSE)","v":{"$error":"#N/A"}}]
[null,null,null,null,null,null,null,null,null,{"$f":"VLOOKUP(D181,NOMS!$A:$B,2,FALSE)","v":{"$error":"#N/A"}}]
[null,null,null,null,null,null,null,null,null,{"$f":"VLOOKUP(D182,NOMS!$A:$B,2,FALSE)","v":{"$error":"#N/A"}}]
[null,null,null,null,null,null,null,null,null,{"$f":"VLOOKUP(D183,NOMS!$A:$B,2,FALSE)","v":{"$error":"#N/A"}}]
[null,null,null,null,null,null,null,null,null,{"$f":"VLOOKUP(D184,NOMS!$A:$B,2,FALSE)","v":{"$error":"#N/A"}}]
[null,null,null,null,null,null,null,null,null,{"$f":"VLOOKUP(D185,NOMS!$A:$B,2,FALSE)","v":{"$error":"#N/A"}}]
[null,null,null,null,null,null,null,null,null,{"$f":"VLOOKUP(D186,NOMS!$A:$B,2,FALSE)","v":{"$error":"#N/A"}}]
[null,null,null,null,null,null,null,null,null,{"$f":"VLOOKUP(D187,NOMS!$A:$B,2,FALSE)","v":{"$error":"#N/A"}}]
[null,null,null,null,null,null,null,null,null,{"$f":"VLOOKUP(D188,NOMS!$A:$B,2,FALSE)","v":{"$error":"#N/A"}}]
[null,null,null,null,null,null,null,null,null,{"$f":"VLOOKUP(D189,NOMS!$A:$B,2,FALSE)","v":{"$error":"#N/A"}}]
[null,null,null,null,null,null,null,null,null,{"$f":"VLOOKUP(D190,NOMS!$A:$B,2,FALSE)","v":{"$error":"#N/A"}}]
[null,null,null,null,null,null,null,null,null,{"$f":"VLOOKUP(D191,NOMS!$A:$B,2,FALSE)","v":{"$error":"#N/A"}}]
[null,null,null,null,null,null,null,null,null,{"$f":"VLOOKUP(D192,NOMS!$A:$B,2,FALSE)","v":{"$error":"#N/A"}}]
[null,null,null,null,null,null,null,null,null,{"$f":"VLOOKUP(D193,NOMS!$A:$B,2,FALSE)","v":{"$error":"#N/A"}}]
[null,null,null,null,null,null,null,null,null,{"$f":"VLOOKUP(D194,NOMS!$A:$B,2,FALSE)","v":{"$error":"#N/A"}}]
[null,null,null,null,null,null,null,null,null,{"$f":"VLOOKUP(D195,NOMS!$A:$B,2,FALSE)","v":{"$error":"#N/A"}}]
[null,null,null,null,null,null,null,null,null,{"$f":"VLOOKUP(D196,NOMS!$A:$B,2,FALSE)","v":{"$error":"#N/A"}}]
[null,null,null,null,null,null,null,null,null,{"$f":"VLOOKUP(D197,NOMS!$A:$B,2,FALSE)","v":{"$error":"#N/A"}}]
[null,null,null,null,null,null,null,null,null,{"$f":"VLOOKUP(D198,NOMS!$A:$B,2,FALSE)","v":{"$error":"#N/A"}}]
[null,null,null,null,null,null,null,null,null,{"$f":"VLOOKUP(D199,NOMS!$A:$B,2,FALSE)","v":{"$error":"#N/A"}},8]
[null,null,null,null,null,null,null,null,null,{"$f":"VLOOKUP(D200,NOMS!$A:$B,2,FALSE)","v":{"$error":"#N/A"}}]
[null,null,null,null,null,null,null,null,null,{"$f":"VLOOKUP(D201,NOMS!$A:$B,2,FALSE)","v":{"$error":"#N/A"}}]
[null,null,null,null,null,null,null,null,null,{"$f":"VLOOKUP(D202,NOMS!$A:$B,2,FALSE)","v":{"$error":"#N/A"}}]
[null,null,null,null,null,null,null,null,null,{"$f":"VLOOKUP(D203,NOMS!$A:$B,2,FALSE)","v":{"$error":"#N/A"}}]
[null,null,null,null,null,null,null,null,null,{"$f":"VLOOKUP(D204,NOMS!$A:$B,2,FALSE)","v":{"$error":"#N/A"}}]
[null,null,null,null,null,null,null,null,null,{"$f":"VLOOKUP(D205,NOMS!$A:$B,2,FALSE)","v":{"$error":"#N/A"}},9]
[null,null,null,null,null,null,null,null,null,{"$f":"VLOOKUP(D206,NOMS!$A:$B,2,FALSE)","v":{"$error":"#N/A"}}]
[null,null,null,null,null,null,null,null,null,{"$f":"VLOOKUP(D207,NOMS!$A:$B,2,FALSE)","v":{"$error":"#N/A"}}]
[null,null,null,null,null,null,null,null,null,{"$f":"VLOOKUP(D208,NOMS!$A:$B,2,FALSE)","v":{"$error":"#N/A"}}]
[null,null,null,null,null,null,null,null,null,{"$f":"VLOOKUP(D209,NOMS!$A:$B,2,FALSE)","v":{"$error":"#N/A"}}]
[null,null,null,null,null,null,null,null,null,{"$f":"VLOOKUP(D210,NOMS!$A:$B,2,FALSE)","v":{"$error":"#N/A"}}]
[null,null,null,null,null,null,null,null,null,{"$f":"VLOOKUP(D211,NOMS!$A:$B,2,FALSE)","v":{"$error":"#N/A"}}]
[null,null,null,null,null,null,null,null,null,{"$f":"VLOOKUP(D212,NOMS!$A:$B,2,FALSE)","v":{"$error":"#N/A"}}]
[null,null,null,null,null,null,null,null,null,{"$f":"VLOOKUP(D213,NOMS!$A:$B,2,FALSE)","v":{"$error":"#N/A"}}]
[null,null,null,null,null,null,null,null,null,{"$f":"VLOOKUP(D214,NOMS!$A:$B,2,FALSE)","v":{"$error":"#N/A"}}]
[null,null,null,null,null,null,null,null,null,{"$f":"VLOOKUP(D215,NOMS!$A:$B,2,FALSE)","v":{"$error":"#N/A"}}]
[null,null,null,null,null,null,null,null,null,{"$f":"VLOOKUP(D216,NOMS!$A:$B,2,FALSE)","v":{"$error":"#N/A"}}]
[null,null,null,null,null,null,null,null,null,{"$f":"VLOOKUP(D217,NOMS!$A:$B,2,FALSE)","v":{"$error":"#N/A"}},6]
[null,null,null,null,null,null,null,null,null,{"$f":"VLOOKUP(D218,NOMS!$A:$B,2,FALSE)","v":{"$error":"#N/A"}}]
[null,null,null,null,null,null,null,null,null,{"$f":"VLOOKUP(D219,NOMS!$A:$B,2,FALSE)","v":{"$error":"#N/A"}}]
[null,null,null,null,null,null,null,null,null,{"$f":"VLOOKUP(D220,NOMS!$A:$B,2,FALSE)","v":{"$error":"#N/A"}}]
[null,null,null,null,null,null,null,null,null,{"$f":"VLOOKUP(D221,NOMS!$A:$B,2,FALSE)","v":{"$error":"#N/A"}}]
[null,null,null,null,null,null,null,null,null,{"$f":"VLOOKUP(D222,NOMS!$A:$B,2,FALSE)","v":{"$error":"#N/A"}}]
[null,null,null,null,null,null,null,null,null,{"$f":"VLOOKUP(D223,NOMS!$A:$B,2,FALSE)","v":{"$error":"#N/A"}},16]
[null,null,null,null,null,null,null,null,null,{"$f":"VLOOKUP(D224,NOMS!$A:$B,2,FALSE)","v":{"$error":"#N/A"}}]
[null,null,null,null,null,null,null,null,null,{"$f":"VLOOKUP(D225,NOMS!$A:$B,2,FALSE)","v":{"$error":"#N/A"}}]
[null,null,null,null,null,null,null,null,null,{"$f":"VLOOKUP(D226,NOMS!$A:$B,2,FALSE)","v":{"$error":"#N/A"}}]
[null,null,null,null,null,null,null,null,null,{"$f":"VLOOKUP(D227,NOMS!$A:$B,2,FALSE)","v":{"$error":"#N/A"}}]
[null,null,null,null,null,null,null,null,null,{"$f":"VLOOKUP(D228,NOMS!$A:$B,2,FALSE)","v":{"$error":"#N/A"}}]
[null,null,null,null,null,null,null,null,null,{"$f":"VLOOKUP(D229,NOMS!$A:$B,2,FALSE)","v":{"$error":"#N/A"}},2]
[null,null,null,null,null,null,null,null,null,{"$f":"VLOOKUP(D230,NOMS!$A:$B,2,FALSE)","v":{"$error":"#N/A"}}]
[null,null,null,null,null,null,null,null,null,{"$f":"VLOOKUP(D231,NOMS!$A:$B,2,FALSE)","v":{"$error":"#N/A"}}]
[null,null,null,null,null,null,null,null,null,{"$f":"VLOOKUP(D232,NOMS!$A:$B,2,FALSE)","v":{"$error":"#N/A"}}]
[null,null,null,null,null,null,null,null,null,{"$f":"VLOOKUP(D233,NOMS!$A:$B,2,FALSE)","v":{"$error":"#N/A"}}]
[null,null,null,null,null,null,null,null,null,{"$f":"VLOOKUP(D234,NOMS!$A:$B,2,FALSE)","v":{"$error":"#N/A"}}]
[null,null,null,null,null,null,null,null,null,{"$f":"VLOOKUP(D235,NOMS!$A:$B,2,FALSE)","v":{"$error":"#N/A"}},13]
[null,null,null,null,null,null,null,null,null,{"$f":"VLOOKUP(D236,NOMS!$A:$B,2,FALSE)","v":{"$error":"#N/A"}}]
[null,null,null,null,null,null,null,null,null,{"$f":"VLOOKUP(D237,NOMS!$A:$B,2,FALSE)","v":{"$error":"#N/A"}}]
[null,null,null,null,null,null,null,null,null,{"$f":"VLOOKUP(D238,NOMS!$A:$B,2,FALSE)","v":{"$error":"#N/A"}}]
[null,null,null,null,null,null,null,null,null,{"$f":"VLOOKUP(D239,NOMS!$A:$B,2,FALSE)","v":{"$error":"#N/A"}}]
[null,null,null,null,null,null,null,null,null,{"$f":"VLOOKUP(D240,NOMS!$A:$B,2,FALSE)","v":{"$error":"#N/A"}}]
[null,null,null,null,null,null,null,null,null,{"$f":"VLOOKUP(D241,NOMS!$A:$B,2,FALSE)","v":{"$error":"#N/A"}},15]
[null,null,null,null,null,null,null,null,null,{"$f":"VLOOKUP(D242,NOMS!$A:$B,2,FALSE)","v":{"$error":"#N/A"}}]
[null,null,null,null,null,null,null,null,null,{"$f":"VLOOKUP(D243,NOMS!$A:$B,2,FALSE)","v":{"$error":"#N/A"}}]
[null,null,null,null,null,null,null,null,null,{"$f":"VLOOKUP(D244,NOMS!$A:$B,2,FALSE)","v":{"$error":"#N/A"}}]
[null,null,null,null,null,null,null,null,null,{"$f":"VLOOKUP(D245,NOMS!$A:$B,2,FALSE)","v":{"$error":"#N/A"}}]
[null,null,null,null,null,null,null,null,null,{"$f":"VLOOKUP(D246,NOMS!$A:$B,2,FALSE)","v":{"$error":"#N/A"}}]
[null,null,null,null,null,null,null,null,null,{"$f":"VLOOKUP(D247,NOMS!$A:$B,2,FALSE)","v":{"$error":"#N/A"}},2]
[null,null,null,null,null,null,null,null,null,{"$f":"VLOOKUP(D248,NOMS!$A:$B,2,FALSE)","v":{"$error":"#N/A"}}]
[null,null,null,null,null,null,null,null,null,{"$f":"VLOOKUP(D249,NOMS!$A:$B,2,FALSE)","v":{"$error":"#N/A"}}]
[null,null,null,null,null,null,null,null,null,{"$f":"VLOOKUP(D250,NOMS!$A:$B,2,FALSE)","v":{"$error":"#N/A"}}]
[null,null,null,null,null,null,null,null,null,{"$f":"VLOOKUP(D251,NOMS!$A:$B,2,FALSE)","v":{"$error":"#N/A"}}]
[null,null,null,null,null,null,null,null,null,{"$f":"VLOOKUP(D252,NOMS!$A:$B,2,FALSE)","v":{"$error":"#N/A"}}]
[null,null,null,null,null,null,null,null,null,{"$f":"VLOOKUP(D253,NOMS!$A:$B,2,FALSE)","v":{"$error":"#N/A"}},17]
[null,null,null,null,null,null,null,null,null,{"$f":"VLOOKUP(D254,NOMS!$A:$B,2,FALSE)","v":{"$error":"#N/A"}}]
[null,null,null,null,null,null,null,null,null,{"$f":"VLOOKUP(D255,NOMS!$A:$B,2,FALSE)","v":{"$error":"#N/A"}}]
[null,null,null,null,null,null,null,null,null,{"$f":"VLOOKUP(D256,NOMS!$A:$B,2,FALSE)","v":{"$error":"#N/A"}}]
[null,null,null,null,null,null,null,null,null,{"$f":"VLOOKUP(D257,NOMS!$A:$B,2,FALSE)","v":{"$error":"#N/A"}}]
[null,null,null,null,null,null,null,null,null,{"$f":"VLOOKUP(D258,NOMS!$A:$B,2,FALSE)","v":{"$error":"#N/A"}}]
[null,null,null,null,null,null,null,null,null,{"$f":"VLOOKUP(D259,NOMS!$A:$B,2,FALSE)","v":{"$error":"#N/A"}}]
[null,null,null,null,null,null,null,null,null,{"$f":"VLOOKUP(D260,NOMS!$A:$B,2,FALSE)","v":{"$error":"#N/A"}},30]
[null,null,null,null,null,null,null,null,null,{"$f":"VLOOKUP(D261,NOMS!$A:$B,2,FALSE)","v":{"$error":"#N/A"}}]
[null,null,null,null,null,null,null,null,null,{"$f":"VLOOKUP(D262,NOMS!$A:$B,2,FALSE)","v":{"$error":"#N/A"}}]
[null,null,null,null,null,null,null,null,null,{"$f":"VLOOKUP(D263,NOMS!$A:$B,2,FALSE)","v":{"$error":"#N/A"}}]
[null,null,null,null,null,null,null,null,null,{"$f":"VLOOKUP(D264,NOMS!$A:$B,2,FALSE)","v":{"$error":"#N/A"}}]
[null,null,null,null,null,null,null,null,null,{"$f":"VLOOKUP(D265,NOMS!$A:$B,2,FALSE)","v":{"$error":"#N/A"}}]
[null,null,null,null,null,null,null,null,null,{"$f":"VLOOKUP(D266,NOMS!$A:$B,2,FALSE)","v":{"$error":"#N/A"}},8]
[null,null,null,null,null,null,null,null,null,{"$f":"VLOOKUP(D267,NOMS!$A:$B,2,FALSE)","v":{"$error":"#N/A"}}]
[null,null,null,null,null,null,null,null,null,{"$f":"VLOOKUP(D268,NOMS!$A:$B,2,FALSE)","v":{"$error":"#N/A"}}]
[null,null,null,null,null,null,null,null,null,{"$f":"VLOOKUP(D269,NOMS!$A:$B,2,FALSE)","v":{"$error":"#N/A"}}]
[null,null,null,null,null,null,null,null,null,{"$f":"VLOOKUP(D270,NOMS!$A:$B,2,FALSE)","v":{"$error":"#N/A"}}]
[null,null,null,null,null,null,null,null,null,{"$f":"VLOOKUP(D271,NOMS!$A:$B,2,FALSE)","v":{"$error":"#N/A"}}]
[null,null,null,null,null,null,null,null,null,{"$f":"VLOOKUP(D272,NOMS!$A:$B,2,FALSE)","v":{"$error":"#N/A"}},23]
[null,null,null,null,null,null,null,null,null,{"$f":"VLOOKUP(D273,NOMS!$A:$B,2,FALSE)","v":{"$error":"#N/A"}}]
[null,null,null,null,null,null,null,null,null,{"$f":"VLOOKUP(D274,NOMS!$A:$B,2,FALSE)","v":{"$error":"#N/A"}}]
[null,null,null,null,null,null,null,null,null,{"$f":"VLOOKUP(D275,NOMS!$A:$B,2,FALSE)","v":{"$error":"#N/A"}}]
[null,null,null,null,null,null,null,null,null,{"$f":"VLOOKUP(D276,NOMS!$A:$B,2,FALSE)","v":{"$error":"#N/A"}}]
[null,null,null,null,null,null,null,null,null,{"$f":"VLOOKUP(D277,NOMS!$A:$B,2,FALSE)","v":{"$error":"#N/A"}}]
[null,null,null,null,null,null,null,null,null,{"$f":"VLOOKUP(D278,NOMS!$A:$B,2,FALSE)","v":{"$error":"#N/A"}},23]
[null,null,null,null,null,null,null,null,null,{"$f":"VLOOKUP(D279,NOMS!$A:$B,2,FALSE)","v":{"$error":"#N/A"}}]
[null,null,null,null,null,null,null,null,null,{"$f":"VLOOKUP(D280,NOMS!$A:$B,2,FALSE)","v":{"$error":"#N/A"}}]
[null,null,null,null,null,null,null,null,null,{"$f":"VLOOKUP(D281,NOMS!$A:$B,2,FALSE)","v":{"$error":"#N/A"}}]
[null,null,null,null,null,null,null,null,null,{"$f":"VLOOKUP(D282,NOMS!$A:$B,2,FALSE)","v":{"$error":"#N/A"}}]
[null,null,null,null,null,null,null,null,null,{"$f":"VLOOKUP(D283,NOMS!$A:$B,2,FALSE)","v":{"$error":"#N/A"}}]
[null,null,null,null,null,null,null,null,null,{"$f":"VLOOKUP(D284,NOMS!$A:$B,2,FALSE)","v":{"$error":"#N/A"}},30]
[null,null,null,null,null,null,null,null,null,{"$f":"VLOOKUP(D285,NOMS!$A:$B,2,FALSE)","v":{"$error":"#N/A"}}]
[null,null,null,null,null,null,null,null,null,{"$f":"VLOOKUP(D286,NOMS!$A:$B,2,FALSE)","v":{"$error":"#N/A"}}]
[null,null,null,null,null,null,null,null,null,{"$f":"VLOOKUP(D287,NOMS!$A:$B,2,FALSE)","v":{"$error":"#N/A"}}]
[null,null,null,null,null,null,null,null,null,{"$f":"VLOOKUP(D288,NOMS!$A:$B,2,FALSE)","v":{"$error":"#N/A"}}]
[null,null,null,null,null,null,null,null,null,{"$f":"VLOOKUP(D289,NOMS!$A:$B,2,FALSE)","v":{"$error":"#N/A"}}]
[null,null,null,null,null,null,null,null,null,{"$f":"VLOOKUP(D290,NOMS!$A:$B,2,FALSE)","v":{"$error":"#N/A"}},30]
[null,null,null,null,null,null,null,null,null,{"$f":"VLOOKUP(D291,NOMS!$A:$B,2,FALSE)","v":{"$error":"#N/A"}}]
[null,null,null,null,null,null,null,null,null,{"$f":"VLOOKUP(D292,NOMS!$A:$B,2,FALSE)","v":{"$error":"#N/A"}}]
[null,null,null,null,null,null,null,null,null,{"$f":"VLOOKUP(D293,NOMS!$A:$B,2,FALSE)","v":{"$error":"#N/A"}}]
[null,null,null,null,null,null,null,null,null,{"$f":"VLOOKUP(D294,NOMS!$A:$B,2,FALSE)","v":{"$error":"#N/A"}}]
[null,null,null,null,null,null,null,null,null,{"$f":"VLOOKUP(D295,NOMS!$A:$B,2,FALSE)","v":{"$error":"#N/A"}}]
[null,null,null,null,null,null,null,null,null,{"$f":"VLOOKUP(D296,NOMS!$A:$B,2,FALSE)","v":{"$error":"#N/A"}},11]
[null,null,null,null,null,null,null,null,null,{"$f":"VLOOKUP(D297,NOMS!$A:$B,2,FALSE)","v":{"$error":"#N/A"}}]
[null,null,null,null,null,null,null,null,null,{"$f":"VLOOKUP(D298,NOMS!$A:$B,2,FALSE)","v":{"$error":"#N/A"}}]
[null,null,null,null,null,null,null,null,null,{"$f":"VLOOKUP(D299,NOMS!$A:$B,2,FALSE)","v":{"$error":"#N/A"}}]
[null,null,null,null,null,null,null,null,null,{"$f":"VLOOKUP(D300,NOMS!$A:$B,2,FALSE)","v":{"$error":"#N/A"}}]
[null,null,null,null,null,null,null,null,null,{"$f":"VLOOKUP(D301,NOMS!$A:$B,2,FALSE)","v":{"$error":"#N/A"}}]
[null,null,null,null,null,null,null,null,null,{"$f":"VLOOKUP(D302,NOMS!$A:$B,2,FALSE)","v":{"$error":"#N/A"}},25]
[null,null,null,null,null,null,null,null,null,{"$f":"VLOOKUP(D303,NOMS!$A:$B,2,FALSE)","v":{"$error":"#N/A"}}]
[null,null,null,null,null,null,null,null,null,{"$f":"VLOOKUP(D304,NOMS!$A:$B,2,FALSE)","v":{"$error":"#N/A"}}]
[null,null,null,null,null,null,null,null,null,{"$f":"VLOOKUP(D305,NOMS!$A:$B,2,FALSE)","v":{"$error":"#N/A"}}]
[null,null,null,null,null,null,null,null,null,{"$f":"VLOOKUP(D306,NOMS!$A:$B,2,FALSE)","v":{"$error":"#N/A"}}]
[null,null,null,null,null,null,null,null,null,{"$f":"VLOOKUP(D307,NOMS!$A:$B,2,FALSE)","v":{"$error":"#N/A"}}]
[null,null,null,null,null,null,null,null,null,{"$f":"VLOOKUP(D308,NOMS!$A:$B,2,FALSE)","v":{"$error":"#N/A"}},12]
[null,null,null,null,null,null,null,null,null,{"$f":"VLOOKUP(D309,NOMS!$A:$B,2,FALSE)","v":{"$error":"#N/A"}}]
[null,null,null,null,null,null,null,null,null,{"$f":"VLOOKUP(D310,NOMS!$A:$B,2,FALSE)","v":{"$error":"#N/A"}}]
[null,null,null,null,null,null,null,null,null,{"$f":"VLOOKUP(D311,NOMS!$A:$B,2,FALSE)","v":{"$error":"#N/A"}}]
[null,null,null,null,null,null,null,null,null,{"$f":"VLOOKUP(D312,NOMS!$A:$B,2,FALSE)","v":{"$error":"#N/A"}}]
[null,null,null,null,null,null,null,null,null,{"$f":"VLOOKUP(D313,NOMS!$A:$B,2,FALSE)","v":{"$error":"#N/A"}}]
[null,null,null,null,null,null,null,null,null,{"$f":"VLOOKUP(D314,NOMS!$A:$B,2,FALSE)","v":{"$error":"#N/A"}},30]
[null,null,null,null,null,null,null,null,null,{"$f":"VLOOKUP(D315,NOMS!$A:$B,2,FALSE)","v":{"$error":"#N/A"}}]
[null,null,null,null,null,null,null,null,null,{"$f":"VLOOKUP(D316,NOMS!$A:$B,2,FALSE)","v":{"$error":"#N/A"}}]
[null,null,null,null,null,null,null,null,null,{"$f":"VLOOKUP(D317,NOMS!$A:$B,2,FALSE)","v":{"$error":"#N/A"}}]
[null,null,null,null,null,null,null,null,null,{"$f":"VLOOKUP(D318,NOMS!$A:$B,2,FALSE)","v":{"$error":"#N/A"}}]
[null,null,null,null,null,null,null,null,null,{"$f":"VLOOKUP(D319,NOMS!$A:$B,2,FALSE)","v":{"$error":"#N/A"}}]
[null,null,null,null,null,null,null,null,null,{"$f":"VLOOKUP(D320,NOMS!$A:$B,2,FALSE)","v":{"$error":"#N/A"}}]
[null,null,null,null,null,null,null,null,null,{"$f":"VLOOKUP(D321,NOMS!$A:$B,2,FALSE)","v":{"$error":"#N/A"}},10]
[null,null,null,null,null,null,null,null,null,{"$f":"VLOOKUP(D322,NOMS!$A:$B,2,FALSE)","v":{"$error":"#N/A"}}]
[null,null,null,null,null,null,null,null,null,{"$f":"VLOOKUP(D323,NOMS!$A:$B,2,FALSE)","v":{"$error":"#N/A"}}]
[null,null,null,null,null,null,null,null,null,{"$f":"VLOOKUP(D324,NOMS!$A:$B,2,FALSE)","v":{"$error":"#N/A"}}]
[null,null,null,null,null,null,null,null,null,{"$f":"VLOOKUP(D325,NOMS!$A:$B,2,FALSE)","v":{"$error":"#N/A"}}]
[null,null,null,null,null,null,null,null,null,{"$f":"VLOOKUP(D326,NOMS!$A:$B,2,FALSE)","v":{"$error":"#N/A"}}]
[null,null,null,null,null,null,null,null,null,{"$f":"VLOOKUP(D327,NOMS!$A:$B,2,FALSE)","v":{"$error":"#N/A"}},10]
[null,null,null,null,null,null,null,null,null,{"$f":"VLOOKUP(D328,NOMS!$A:$B,2,FALSE)","v":{"$error":"#N/A"}}]
[null,null,null,null,null,null,null,null,null,{"$f":"VLOOKUP(D329,NOMS!$A:$B,2,FALSE)","v":{"$error":"#N/A"}}]
[null,null,null,null,null,null,null,null,null,{"$f":"VLOOKUP(D330,NOMS!$A:$B,2,FALSE)","v":{"$error":"#N/A"}}]
[null,null,null,null,null,null,null,null,null,{"$f":"VLOOKUP(D331,NOMS!$A:$B,2,FALSE)","v":{"$error":"#N/A"}}]
[null,null,null,null,null,null,null,null,null,{"$f":"VLOOKUP(D332,NOMS!$A:$B,2,FALSE)","v":{"$error":"#N/A"}}]
[null,null,null,null,null,null,null,null,null,{"$f":"VLOOKUP(D333,NOMS!$A:$B,2,FALSE)","v":{"$error":"#N/A"}},20]
[null,null,null,null,null,null,null,null,null,{"$f":"VLOOKUP(D334,NOMS!$A:$B,2,FALSE)","v":{"$error":"#N/A"}}]
[null,null,null,null,null,null,null,null,null,{"$f":"VLOOKUP(D335,NOMS!$A:$B,2,FALSE)","v":{"$error":"#N/A"}}]
[null,null,null,null,null,null,null,null,null,{"$f":"VLOOKUP(D336,NOMS!$A:$B,2,FALSE)","v":{"$error":"#N/A"}}]
[null,null,null,null,null,null,null,null,null,{"$f":"VLOOKUP(D337,NOMS!$A:$B,2,FALSE)","v":{"$error":"#N/A"}}]
[null,null,null,null,null,null,null,null,null,{"$f":"VLOOKUP(D338,NOMS!$A:$B,2,FALSE)","v":{"$error":"#N/A"}}]
[null,null,null,null,null,null,null,null,null,{"$f":"VLOOKUP(D339,NOMS!$A:$B,2,FALSE)","v":{"$error":"#N/A"}},17]
[null,null,null,null,null,null,null,null,null,{"$f":"VLOOKUP(D340,NOMS!$A:$B,2,FALSE)","v":{"$error":"#N/A"}}]
[null,null,null,null,null,null,null,null,null,{"$f":"VLOOKUP(D341,NOMS!$A:$B,2,FALSE)","v":{"$error":"#N/A"}}]
[null,null,null,null,null,null,null,null,null,{"$f":"VLOOKUP(D342,NOMS!$A:$B,2,FALSE)","v":{"$error":"#N/A"}}]
[null,null,null,null,null,null,null,null,null,{"$f":"VLOOKUP(D343,NOMS!$A:$B,2,FALSE)","v":{"$error":"#N/A"}}]
[null,null,null,null,null,null,null,null,null,{"$f":"VLOOKUP(D344,NOMS!$A:$B,2,FALSE)","v":{"$error":"#N/A"}}]
[null,null,null,null,null,null,null,null,null,{"$f":"VLOOKUP(D345,NOMS!$A:$B,2,FALSE)","v":{"$error":"#N/A"}},18]
[null,null,null,null,null,null,null,null,null,{"$f":"VLOOKUP(D346,NOMS!$A:$B,2,FALSE)","v":{"$error":"#N/A"}}]
[null,null,null,null,null,null,null,null,null,{"$f":"VLOOKUP(D347,NOMS!$A:$B,2,FALSE)","v":{"$error":"#N/A"}}]
[null,null,null,null,null,null,null,null,null,{"$f":"VLOOKUP(D348,NOMS!$A:$B,2,FALSE)","v":{"$error":"#N/A"}}]
[null,null,null,null,null,null,null,null,null,{"$f":"VLOOKUP(D349,NOMS!$A:$B,2,FALSE)","v":{"$error":"#N/A"}}]
[null,null,null,null,null,null,null,null,null,{"$f":"VLOOKUP(D350,NOMS!$A:$B,2,FALSE)","v":{"$error":"#N/A"}}]
[null,null,null,null,null,null,null,null,null,{"$f":"VLOOKUP(D351,NOMS!$A:$B,2,FALSE)","v":{"$error":"#N/A"}},"17"]
[null,null,null,null,null,null,null,null,null,{"$f":"VLOOKUP(D352,NOMS!$A:$B,2,FALSE)","v":{"$error":"#N/A"}}]
[null,null,null,null,null,null,null,null,null,{"$f":"VLOOKUP(D353,NOMS!$A:$B,2,FALSE)","v":{"$error":"#N/A"}}]
[null,null,null,null,null,null,null,null,null,{"$f":"VLOOKUP(D354,NOMS!$A:$B,2,FALSE)","v":{"$error":"#N/A"}}]
[null,null,null,null,null,null,null,null,null,{"$f":"VLOOKUP(D355,NOMS!$A:$B,2,FALSE)","v":{"$error":"#N/A"}}]
[null,null,null,null,null,null,null,null,null,{"$f":"VLOOKUP(D356,NOMS!$A:$B,2,FALSE)","v":{"$error":"#N/A"}}]
[null,null,null,null,null,null,null,null,null,{"$f":"VLOOKUP(D357,NOMS!$A:$B,2,FALSE)","v":{"$error":"#N/A"}}]
[null,null,null,null,null,null,null,null,null,{"$f":"VLOOKUP(D358,NOMS!$A:$B,2,FALSE)","v":{"$error":"#N/A"}}]
[null,null,null,null,null,null,null,null,null,{"$f":"VLOOKUP(D359,NOMS!$A:$B,2,FALSE)","v":{"$error":"#N/A"}},30]
[null,null,null,null,null,null,null,null,null,{"$f":"VLOOKUP(D360,NOMS!$A:$B,2,FALSE)","v":{"$error":"#N/A"}}]
[null,null,null,null,null,null,null,null,null,{"$f":"VLOOKUP(D361,NOMS!$A:$B,2,FALSE)","v":{"$error":"#N/A"}}]
[null,null,null,null,null,null,null,null,null,{"$f":"VLOOKUP(D362,NOMS!$A:$B,2,FALSE)","v":{"$error":"#N/A"}}]
[null,null,null,null,null,null,null,null,null,{"$f":"VLOOKUP(D363,NOMS!$A:$B,2,FALSE)","v":{"$error":"#N/A"}}]
[null,null,null,null,null,null,null,null,null,{"$f":"VLOOKUP(D364,NOMS!$A:$B,2,FALSE)","v":{"$error":"#N/A"}}]
[null,null,null,null,null,null,null,null,null,{"$f":"VLOOKUP(D365,NOMS!$A:$B,2,FALSE)","v":{"$error":"#N/A"}},29]
[null,null,null,null,null,null,null,null,null,{"$f":"VLOOKUP(D366,NOMS!$A:$B,2,FALSE)","v":{"$error":"#N/A"}}]
[null,null,null,null,null,null,null,null,null,{"$f":"VLOOKUP(D367,NOMS!$A:$B,2,FALSE)","v":{"$error":"#N/A"}}]
[null,null,null,null,null,null,null,null,null,{"$f":"VLOOKUP(D368,NOMS!$A:$B,2,FALSE)","v":{"$error":"#N/A"}}]
[null,null,null,null,null,null,null,null,null,{"$f":"VLOOKUP(D369,NOMS!$A:$B,2,FALSE)","v":{"$error":"#N/A"}}]
[null,null,null,null,null,null,null,null,null,{"$f":"VLOOKUP(D370,NOMS!$A:$B,2,FALSE)","v":{"$error":"#N/A"}}]
[null,null,null,null,null,null,null,null,null,{"$f":"VLOOKUP(D371,NOMS!$A:$B,2,FALSE)","v":{"$error":"#N/A"}},29]
[null,null,null,null,null,null,null,null,null,{"$f":"VLOOKUP(D372,NOMS!$A:$B,2,FALSE)","v":{"$error":"#N/A"}}]
[null,null,null,null,null,null,null,null,null,{"$f":"VLOOKUP(D373,NOMS!$A:$B,2,FALSE)","v":{"$error":"#N/A"}}]
[null,null,null,null,null,null,null,null,null,{"$f":"VLOOKUP(D374,NOMS!$A:$B,2,FALSE)","v":{"$error":"#N/A"}}]
[null,null,null,null,null,null,null,null,null,{"$f":"VLOOKUP(D375,NOMS!$A:$B,2,FALSE)","v":{"$error":"#N/A"}}]
[null,null,null,null,null,null,null,null,null,{"$f":"VLOOKUP(D376,NOMS!$A:$B,2,FALSE)","v":{"$error":"#N/A"}}]
[null,null,null,null,null,null,null,null,null,{"$f":"VLOOKUP(D377,NOMS!$A:$B,2,FALSE)","v":{"$error":"#N/A"}},29]
[null,null,null,null,null,null,null,null,null,{"$f":"VLOOKUP(D378,NOMS!$A:$B,2,FALSE)","v":{"$error":"#N/A"}}]
[null,null,null,null,null,null,null,null,null,{"$f":"VLOOKUP(D379,NOMS!$A:$B,2,FALSE)","v":{"$error":"#N/A"}}]
[null,null,null,null,null,null,null,null,null,{"$f":"VLOOKUP(D380,NOMS!$A:$B,2,FALSE)","v":{"$error":"#N/A"}}]
[null,null,null,null,null,null,null,null,null,{"$f":"VLOOKUP(D381,NOMS!$A:$B,2,FALSE)","v":{"$error":"#N/A"}}]
[null,null,null,null,null,null,null,null,null,{"$f":"VLOOKUP(D382,NOMS!$A:$B,2,FALSE)","v":{"$error":"#N/A"}}]
[null,null,null,null,null,null,null,null,null,{"$f":"VLOOKUP(D383,NOMS!$A:$B,2,FALSE)","v":{"$error":"#N/A"}},29]
[null,null,null,null,null,null,null,null,null,{"$f":"VLOOKUP(D384,NOMS!$A:$B,2,FALSE)","v":{"$error":"#N/A"}}]
[null,null,null,null,null,null,null,null,null,{"$f":"VLOOKUP(D385,NOMS!$A:$B,2,FALSE)","v":{"$error":"#N/A"}}]
[null,null,null,null,null,null,null,null,null,{"$f":"VLOOKUP(D386,NOMS!$A:$B,2,FALSE)","v":{"$error":"#N/A"}}]
[null,null,null,null,null,null,null,null,null,{"$f":"VLOOKUP(D387,NOMS!$A:$B,2,FALSE)","v":{"$error":"#N/A"}}]
[null,null,null,null,null,null,null,null,null,{"$f":"VLOOKUP(D388,NOMS!$A:$B,2,FALSE)","v":{"$error":"#N/A"}}]
[null,null,null,null,null,null,null,null,null,{"$f":"VLOOKUP(D389,NOMS!$A:$B,2,FALSE)","v":{"$error":"#N/A"}},"17"]
[null,null,null,null,null,null,null,null,null,{"$f":"VLOOKUP(D390,NOMS!$A:$B,2,FALSE)","v":{"$error":"#N/A"}}]
[null,null,null,null,null,null,null,null,null,{"$f":"VLOOKUP(D391,NOMS!$A:$B,2,FALSE)","v":{"$error":"#N/A"}}]
[null,null,null,null,null,null,null,null,null,{"$f":"VLOOKUP(D392,NOMS!$A:$B,2,FALSE)","v":{"$error":"#N/A"}}]
[null,null,null,null,null,null,null,null,null,{"$f":"VLOOKUP(D393,NOMS!$A:$B,2,FALSE)","v":{"$error":"#N/A"}}]
[null,null,null,null,null,null,null,null,null,{"$f":"VLOOKUP(D394,NOMS!$A:$B,2,FALSE)","v":{"$error":"#N/A"}}]
[null,null,null,null,null,null,null,null,null,{"$f":"VLOOKUP(D395,NOMS!$A:$B,2,FALSE)","v":{"$error":"#N/A"}}]
[null,null,null,null,null,null,null,null,null,{"$f":"VLOOKUP(D396,NOMS!$A:$B,2,FALSE)","v":{"$error":"#N/A"}}]
[null,null,null,null,null,null,null,null,null,{"$f":"VLOOKUP(D397,NOMS!$A:$B,2,FALSE)","v":{"$error":"#N/A"}},"21"]
[null,null,null,null,null,null,null,null,null,{"$f":"VLOOKUP(D398,NOMS!$A:$B,2,FALSE)","v":{"$error":"#N/A"}}]
[null,null,null,null,null,null,null,null,null,{"$f":"VLOOKUP(D399,NOMS!$A:$B,2,FALSE)","v":{"$error":"#N/A"}}]
[null,null,null,null,null,null,null,null,null,{"$f":"VLOOKUP(D400,NOMS!$A:$B,2,FALSE)","v":{"$error":"#N/A"}}]
[null,null,null,null,null,null,null,null,null,{"$f":"VLOOKUP(D401,NOMS!$A:$B,2,FALSE)","v":{"$error":"#N/A"}}]
[null,null,null,null,null,null,null,null,null,{"$f":"VLOOKUP(D402,NOMS!$A:$B,2,FALSE)","v":{"$error":"#N/A"}}]
[null,null,null,null,null,null,null,null,null,{"$f":"VLOOKUP(D403,NOMS!$A:$B,2,FALSE)","v":{"$error":"#N/A"}},"03"]
[null,null,null,null,null,null,null,null,null,{"$f":"VLOOKUP(D404,NOMS!$A:$B,2,FALSE)","v":{"$error":"#N/A"}}]
[null,null,null,null,null,null,null,null,null,{"$f":"VLOOKUP(D405,NOMS!$A:$B,2,FALSE)","v":{"$error":"#N/A"}}]
[null,null,null,null,null,null,null,null,null,{"$f":"VLOOKUP(D406,NOMS!$A:$B,2,FALSE)","v":{"$error":"#N/A"}}]
[null,null,null,null,null,null,null,null,null,{"$f":"VLOOKUP(D407,NOMS!$A:$B,2,FALSE)","v":{"$error":"#N/A"}}]
[null,null,null,null,null,null,null,null,null,{"$f":"VLOOKUP(D408,NOMS!$A:$B,2,FALSE)","v":{"$error":"#N/A"}}]
[null,null,null,null,null,null,null,null,null,{"$f":"VLOOKUP(D409,NOMS!$A:$B,2,FALSE)","v":{"$error":"#N/A"}},"09"]
[null,null,null,null,null,null,null,null,null,{"$f":"VLOOKUP(D410,NOMS!$A:$B,2,FALSE)","v":{"$error":"#N/A"}}]
[null,null,null,null,null,null,null,null,null,{"$f":"VLOOKUP(D411,NOMS!$A:$B,2,FALSE)","v":{"$error":"#N/A"}}]
[null,null,null,null,null,null,null,null,null,{"$f":"VLOOKUP(D412,NOMS!$A:$B,2,FALSE)","v":{"$error":"#N/A"}}]
[null,null,null,null,null,null,null,null,null,{"$f":"VLOOKUP(D413,NOMS!$A:$B,2,FALSE)","v":{"$error":"#N/A"}}]
[null,null,null,null,null,null,null,null,null,{"$f":"VLOOKUP(D414,NOMS!$A:$B,2,FALSE)","v":{"$error":"#N/A"}}]
[null,null,null,null,null,null,null,null,null,{"$f":"VLOOKUP(D415,NOMS!$A:$B,2,FALSE)","v":{"$error":"#N/A"}},"13"]
[null,null,null,null,null,null,null,null,null,{"$f":"VLOOKUP(D416,NOMS!$A:$B,2,FALSE)","v":{"$error":"#N/A"}}]
[null,null,null,null,null,null,null,null,null,{"$f":"VLOOKUP(D417,NOMS!$A:$B,2,FALSE)","v":{"$error":"#N/A"}}]
[null,null,null,null,null,null,null,null,null,{"$f":"VLOOKUP(D418,NOMS!$A:$B,2,FALSE)","v":{"$error":"#N/A"}}]
[null,null,null,null,null,null,null,null,null,{"$f":"VLOOKUP(D419,NOMS!$A:$B,2,FALSE)","v":{"$error":"#N/A"}}]
[null,null,null,null,null,null,null,null,null,{"$f":"VLOOKUP(D420,NOMS!$A:$B,2,FALSE)","v":{"$error":"#N/A"}}]
[null,null,null,null,null,null,null,null,null,{"$f":"VLOOKUP(D421,NOMS!$A:$B,2,FALSE)","v":{"$error":"#N/A"}},"13"]
[null,null,null,null,null,null,null,null,null,{"$f":"VLOOKUP(D422,NOMS!$A:$B,2,FALSE)","v":{"$error":"#N/A"}}]
[null,null,null,null,null,null,null,null,null,{"$f":"VLOOKUP(D423,NOMS!$A:$B,2,FALSE)","v":{"$error":"#N/A"}}]
[null,null,null,null,null,null,null,null,null,{"$f":"VLOOKUP(D424,NOMS!$A:$B,2,FALSE)","v":{"$error":"#N/A"}}]
[null,null,null,null,null,null,null,null,null,{"$f":"VLOOKUP(D425,NOMS!$A:$B,2,FALSE)","v":{"$error":"#N/A"}}]
[null,null,null,null,null,null,null,null,null,{"$f":"VLOOKUP(D426,NOMS!$A:$B,2,FALSE)","v":{"$error":"#N/A"}}]
[null,null,null,null,null,null,null,null,null,{"$f":"VLOOKUP(D427,NOMS!$A:$B,2,FALSE)","v":{"$error":"#N/A"}},"13"]
[null,null,null,null,null,null,null,null,null,{"$f":"VLOOKUP(D428,NOMS!$A:$B,2,FALSE)","v":{"$error":"#N/A"}}]
[null,null,null,null,null,null,null,null,null,{"$f":"VLOOKUP(D429,NOMS!$A:$B,2,FALSE)","v":{"$error":"#N/A"}}]
[null,null,null,null,null,null,null,null,null,{"$f":"VLOOKUP(D430,NOMS!$A:$B,2,FALSE)","v":{"$error":"#N/A"}}]
[null,null,null,null,null,null,null,null,null,{"$f":"VLOOKUP(D431,NOMS!$A:$B,2,FALSE)","v":{"$error":"#N/A"}}]
[null,null,null,null,null,null,null,null,null,{"$f":"VLOOKUP(D432,NOMS!$A:$B,2,FALSE)","v":{"$error":"#N/A"}}]
[null,null,null,null,null,null,null,null,null,{"$f":"VLOOKUP(D433,NOMS!$A:$B,2,FALSE)","v":{"$error":"#N/A"}},"13"]
[null,null,null,null,null,null,null,null,null,{"$f":"VLOOKUP(D434,NOMS!$A:$B,2,FALSE)","v":{"$error":"#N/A"}}]
[null,null,null,null,null,null,null,null,null,{"$f":"VLOOKUP(D435,NOMS!$A:$B,2,FALSE)","v":{"$error":"#N/A"}}]
[null,null,null,null,null,null,null,null,null,{"$f":"VLOOKUP(D436,NOMS!$A:$B,2,FALSE)","v":{"$error":"#N/A"}}]
[null,null,null,null,null,null,null,null,null,{"$f":"VLOOKUP(D437,NOMS!$A:$B,2,FALSE)","v":{"$error":"#N/A"}}]
[null,null,null,null,null,null,null,null,null,{"$f":"VLOOKUP(D438,NOMS!$A:$B,2,FALSE)","v":{"$error":"#N/A"}}]
[null,null,null,null,null,null,null,null,null,{"$f":"VLOOKUP(D439,NOMS!$A:$B,2,FALSE)","v":{"$error":"#N/A"}},31]
[null,null,null,null,null,null,null,null,null,{"$f":"VLOOKUP(D440,NOMS!$A:$B,2,FALSE)","v":{"$error":"#N/A"}}]
[null,null,null,null,null,null,null,null,null,{"$f":"VLOOKUP(D441,NOMS!$A:$B,2,FALSE)","v":{"$error":"#N/A"}}]
[null,null,null,null,null,null,null,null,null,{"$f":"VLOOKUP(D442,NOMS!$A:$B,2,FALSE)","v":{"$error":"#N/A"}}]
[null,null,null,null,null,null,null,null,null,{"$f":"VLOOKUP(D443,NOMS!$A:$B,2,FALSE)","v":{"$error":"#N/A"}}]
[null,null,null,null,null,null,null,null,null,{"$f":"VLOOKUP(D444,NOMS!$A:$B,2,FALSE)","v":{"$error":"#N/A"}}]
[null,null,null,null,null,null,null,null,null,{"$f":"VLOOKUP(D445,NOMS!$A:$B,2,FALSE)","v":{"$error":"#N/A"}},29]
[null,null,null,null,null,null,null,null,null,{"$f":"VLOOKUP(D446,NOMS!$A:$B,2,FALSE)","v":{"$error":"#N/A"}}]
[null,null,null,null,null,null,null,null,null,{"$f":"VLOOKUP(D447,NOMS!$A:$B,2,FALSE)","v":{"$error":"#N/A"}}]
[null,null,null,null,null,null,null,null,null,{"$f":"VLOOKUP(D448,NOMS!$A:$B,2,FALSE)","v":{"$error":"#N/A"}}]
[null,null,null,null,null,null,null,null,null,{"$f":"VLOOKUP(D449,NOMS!$A:$B,2,FALSE)","v":{"$error":"#N/A"}}]
[null,null,null,null,null,null,null,null,null,{"$f":"VLOOKUP(D450,NOMS!$A:$B,2,FALSE)","v":{"$error":"#N/A"}}]
[null,null,null,null,null,null,null,null,null,{"$f":"VLOOKUP(D451,NOMS!$A:$B,2,FALSE)","v":{"$error":"#N/A"}},"17"]
[null,null,null,null,null,null,null,null,null,{"$f":"VLOOKUP(D452,NOMS!$A:$B,2,FALSE)","v":{"$error":"#N/A"}}]
[null,null,null,null,null,null,null,null,null,{"$f":"VLOOKUP(D453,NOMS!$A:$B,2,FALSE)","v":{"$error":"#N/A"}}]
[null,null,null,null,null,null,null,null,null,{"$f":"VLOOKUP(D454,NOMS!$A:$B,2,FALSE)","v":{"$error":"#N/A"}}]
[null,null,null,null,null,null,null,null,null,{"$f":"VLOOKUP(D455,NOMS!$A:$B,2,FALSE)","v":{"$error":"#N/A"}}]
[null,null,null,null,null,null,null,null,null,{"$f":"VLOOKUP(D456,NOMS!$A:$B,2,FALSE)","v":{"$error":"#N/A"}}]
[null,null,null,null,null,null,null,null,null,{"$f":"VLOOKUP(D457,NOMS!$A:$B,2,FALSE)","v":{"$error":"#N/A"}},"17"]
[null,null,null,null,null,null,null,null,null,{"$f":"VLOOKUP(D458,NOMS!$A:$B,2,FALSE)","v":{"$error":"#N/A"}}]
[null,null,null,null,null,null,null,null,null,{"$f":"VLOOKUP(D459,NOMS!$A:$B,2,FALSE)","v":{"$error":"#N/A"}}]
[null,null,null,null,null,null,null,null,null,{"$f":"VLOOKUP(D460,NOMS!$A:$B,2,FALSE)","v":{"$error":"#N/A"}}]
[null,null,null,null,null,null,null,null,null,{"$f":"VLOOKUP(D461,NOMS!$A:$B,2,FALSE)","v":{"$error":"#N/A"}}]
[null,null,null,null,null,null,null,null,null,{"$f":"VLOOKUP(D462,NOMS!$A:$B,2,FALSE)","v":{"$error":"#N/A"}}]
[null,null,null,null,null,null,null,null,null,{"$f":"VLOOKUP(D463,NOMS!$A:$B,2,FALSE)","v":{"$error":"#N/A"}},"15"]
[null,null,null,null,null,null,null,null,null,{"$f":"VLOOKUP(D464,NOMS!$A:$B,2,FALSE)","v":{"$error":"#N/A"}}]
[null,null,null,null,null,null,null,null,null,{"$f":"VLOOKUP(D465,NOMS!$A:$B,2,FALSE)","v":{"$error":"#N/A"}}]
[null,null,null,null,null,null,null,null,null,{"$f":"VLOOKUP(D466,NOMS!$A:$B,2,FALSE)","v":{"$error":"#N/A"}}]
[null,null,null,null,null,null,null,null,null,{"$f":"VLOOKUP(D467,NOMS!$A:$B,2,FALSE)","v":{"$error":"#N/A"}}]
[null,null,null,null,null,null,null,null,null,{"$f":"VLOOKUP(D468,NOMS!$A:$B,2,FALSE)","v":{"$error":"#N/A"}}]
[null,null,null,null,null,null,null,null,null,{"$f":"VLOOKUP(D469,NOMS!$A:$B,2,FALSE)","v":{"$error":"#N/A"}}]
[null,null,null,null,null,null,null,null,null,{"$f":"VLOOKUP(D470,NOMS!$A:$B,2,FALSE)","v":{"$error":"#N/A"}}]
[null,null,null,null,null,null,null,null,null,{"$f":"VLOOKUP(D471,NOMS!$A:$B,2,FALSE)","v":{"$error":"#N/A"}}]
[null,null,null,null,null,null,null,null,null,{"$f":"VLOOKUP(D472,NOMS!$A:$B,2,FALSE)","v":{"$error":"#N/A"}}]
[null,null,null,null,null,null,null,null,null,{"$f":"VLOOKUP(D473,NOMS!$A:$B,2,FALSE)","v":{"$error":"#N/A"}}]
[null,null,null,null,null,null,null,null,null,{"$f":"VLOOKUP(D474,NOMS!$A:$B,2,FALSE)","v":{"$error":"#N/A"}}]
[null,null,null,null,null,null,null,null,null,{"$f":"VLOOKUP(D475,NOMS!$A:$B,2,FALSE)","v":{"$error":"#N/A"}}]
[null,null,null,null,null,null,null,null,null,{"$f":"VLOOKUP(D476,NOMS!$A:$B,2,FALSE)","v":{"$error":"#N/A"}}]
[null,null,null,null,null,null,null,null,null,{"$f":"VLOOKUP(D477,NOMS!$A:$B,2,FALSE)","v":{"$error":"#N/A"}}]
[null,null,null,null,null,null,null,null,null,{"$f":"VLOOKUP(D478,NOMS!$A:$B,2,FALSE)","v":{"$error":"#N/A"}}]
[null,null,null,null,null,null,null,null,null,{"$f":"VLOOKUP(D479,NOMS!$A:$B,2,FALSE)","v":{"$error":"#N/A"}}]
[null,null,null,null,null,null,null,null,null,{"$f":"VLOOKUP(D480,NOMS!$A:$B,2,FALSE)","v":{"$error":"#N/A"}}]
[null,null,null,null,null,null,null,null,null,{"$f":"VLOOKUP(D481,NOMS!$A:$B,2,FALSE)","v":{"$error":"#N/A"}}]
[null,null,null,null,null,null,null,null,null,{"$f":"VLOOKUP(D482,NOMS!$A:$B,2,FALSE)","v":{"$error":"#N/A"}}]
[null,null,null,null,null,null,null,null,null,{"$f":"VLOOKUP(D483,NOMS!$A:$B,2,FALSE)","v":{"$error":"#N/A"}}]
[null,null,null,null,null,null,null,null,null,{"$f":"VLOOKUP(D484,NOMS!$A:$B,2,FALSE)","v":{"$error":"#N/A"}}]
[null,null,null,null,null,null,null,null,null,{"$f":"VLOOKUP(D485,NOMS!$A:$B,2,FALSE)","v":{"$error":"#N/A"}}]
[null,null,null,null,null,null,null,null,null,{"$f":"VLOOKUP(D486,NOMS!$A:$B,2,FALSE)","v":{"$error":"#N/A"}}]
[null,null,null,null,null,null,null,null,null,{"$f":"VLOOKUP(D487,NOMS!$A:$B,2,FALSE)","v":{"$error":"#N/A"}}]
[null,null,null,null,null,null,null,null,null,{"$f":"VLOOKUP(D488,NOMS!$A:$B,2,FALSE)","v":{"$error":"#N/A"}}]
[null,null,null,null,null,null,null,null,null,{"$f":"VLOOKUP(D489,NOMS!$A:$B,2,FALSE)","v":{"$error":"#N/A"}}]
[null,null,null,null,null,null,null,null,null,{"$f":"VLOOKUP(D490,NOMS!$A:$B,2,FALSE)","v":{"$error":"#N/A"}}]
[null,null,null,null,null,null,null,null,null,{"$f":"VLOOKUP(D491,NOMS!$A:$B,2,FALSE)","v":{"$error":"#N/A"}}]
[null,null,null,null,null,null,null,null,null,{"$f":"VLOOKUP(D492,NOMS!$A:$B,2,FALSE)","v":{"$error":"#N/A"}}]
[null,null,null,null,null,null,null,null,null,{"$f":"VLOOKUP(D493,NOMS!$A:$B,2,FALSE)","v":{"$error":"#N/A"}}]
[null,null,null,null,null,null,null,null,null,{"$f":"VLOOKUP(D494,NOMS!$A:$B,2,FALSE)","v":{"$error":"#N/A"}}]
[null,null,null,null,null,null,null,null,null,{"$f":"VLOOKUP(D495,NOMS!$A:$B,2,FALSE)","v":{"$error":"#N/A"}}]
[null,null,null,null,null,null,null,null,null,{"$f":"VLOOKUP(D496,NOMS!$A:$B,2,FALSE)","v":{"$error":"#N/A"}}]
[null,null,null,null,null,null,null,null,null,{"$f":"VLOOKUP(D497,NOMS!$A:$B,2,FALSE)","v":{"$error":"#N/A"}}]
[null,null,null,null,null,null,null,null,null,{"$f":"VLOOKUP(D498,NOMS!$A:$B,2,FALSE)","v":{"$error":"#N/A"}}]
[null,null,null,null,null,null,null,null,null,{"$f":"VLOOKUP(D499,NOMS!$A:$B,2,FALSE)","v":{"$error":"#N/A"}}]
[null,null,null,null,null,null,null,null,null,{"$f":"VLOOKUP(D500,NOMS!$A:$B,2,FALSE)","v":{"$error":"#N/A"}}]
[null,null,null,null,null,null,null,null,null,{"$f":"VLOOKUP(D501,NOMS!$A:$B,2,FALSE)","v":{"$error":"#N/A"}}]
[null,null,null,null,null,null,null,null,null,{"$f":"VLOOKUP(D502,NOMS!$A:$B,2,FALSE)","v":{"$error":"#N/A"}}]
[null,null,null,null,null,null,null,null,null,{"$f":"VLOOKUP(D503,NOMS!$A:$B,2,FALSE)","v":{"$error":"#N/A"}}]
[null,null,null,null,null,null,null,null,null,{"$f":"VLOOKUP(D504,NOMS!$A:$B,2,FALSE)","v":{"$error":"#N/A"}}]
[null,null,null,null,null,null,null,null,null,{"$f":"VLOOKUP(D505,NOMS!$A:$B,2,FALSE)","v":{"$error":"#N/A"}}]
[null,null,null,null,null,null,null,null,null,{"$f":"VLOOKUP(D506,NOMS!$A:$B,2,FALSE)","v":{"$error":"#N/A"}}]
[null,null,null,null,null,null,null,null,null,{"$f":"VLOOKUP(D507,NOMS!$A:$B,2,FALSE)","v":{"$error":"#N/A"}}]
[null,null,null,null,null,null,null,null,null,{"$f":"VLOOKUP(D508,NOMS!$A:$B,2,FALSE)","v":{"$error":"#N/A"}}]
[null,null,null,null,null,null,null,null,null,{"$f":"VLOOKUP(D509,NOMS!$A:$B,2,FALSE)","v":{"$error":"#N/A"}}]
[null,null,null,null,null,null,null,null,null,{"$f":"VLOOKUP(D510,NOMS!$A:$B,2,FALSE)","v":{"$error":"#N/A"}}]
[null,null,null,null,null,null,null,null,null,{"$f":"VLOOKUP(D511,NOMS!$A:$B,2,FALSE)","v":{"$error":"#N/A"}}]
[null,null,null,null,null,null,null,null,null,{"$f":"VLOOKUP(D512,NOMS!$A:$B,2,FALSE)","v":{"$error":"#N/A"}}]
[null,null,null,null,null,null,null,null,null,{"$f":"VLOOKUP(D513,NOMS!$A:$B,2,FALSE)","v":{"$error":"#N/A"}}]
[null,null,null,null,null,null,null,null,null,{"$f":"VLOOKUP(D514,NOMS!$A:$B,2,FALSE)","v":{"$error":"#N/A"}}]
[null,null,null,null,null,null,null,null,null,{"$f":"VLOOKUP(D515,NOMS!$A:$B,2,FALSE)","v":{"$error":"#N/A"}}]
[null,null,null,null,null,null,null,null,null,{"$f":"VLOOKUP(D516,NOMS!$A:$B,2,FALSE)","v":{"$error":"#N/A"}}]
[null,null,null,null,null,null,null,null,null,{"$f":"VLOOKUP(D517,NOMS!$A:$B,2,FALSE)","v":{"$error":"#N/A"}}]
[null,null,null,null,null,null,null,null,null,{"$f":"VLOOKUP(D518,NOMS!$A:$B,2,FALSE)","v":{"$error":"#N/A"}}]
[null,null,null,null,null,null,null,null,null,{"$f":"VLOOKUP(D519,NOMS!$A:$B,2,FALSE)","v":{"$error":"#N/A"}}]
[null,null,null,null,null,null,null,null,null,{"$f":"VLOOKUP(D520,NOMS!$A:$B,2,FALSE)","v":{"$error":"#N/A"}}]
[null,null,null,null,null,null,null,null,null,{"$f":"VLOOKUP(D521,NOMS!$A:$B,2,FALSE)","v":{"$error":"#N/A"}}]
[null,null,null,null,null,null,null,null,null,{"$f":"VLOOKUP(D522,NOMS!$A:$B,2,FALSE)","v":{"$error":"#N/A"}}]
[null,null,null,null,null,null,null,null,null,{"$f":"VLOOKUP(D523,NOMS!$A:$B,2,FALSE)","v":{"$error":"#N/A"}}]
[null,null,null,null,null,null,null,null,null,{"$f":"VLOOKUP(D524,NOMS!$A:$B,2,FALSE)","v":{"$error":"#N/A"}}]
[null,null,null,null,null,null,null,null,null,{"$f":"VLOOKUP(D525,NOMS!$A:$B,2,FALSE)","v":{"$error":"#N/A"}}]
[null,null,null,null,null,null,null,null,null,{"$f":"VLOOKUP(D526,NOMS!$A:$B,2,FALSE)","v":{"$error":"#N/A"}}]
[null,null,null,null,null,null,null,null,null,{"$f":"VLOOKUP(D527,NOMS!$A:$B,2,FALSE)","v":{"$error":"#N/A"}}]
[null,null,null,null,null,null,null,null,null,{"$f":"VLOOKUP(D528,NOMS!$A:$B,2,FALSE)","v":{"$error":"#N/A"}}]
[null,null,null,null,null,null,null,null,null,{"$f":"VLOOKUP(D529,NOMS!$A:$B,2,FALSE)","v":{"$error":"#N/A"}}]
[null,null,null,null,null,null,null,null,null,{"$f":"VLOOKUP(D530,NOMS!$A:$B,2,FALSE)","v":{"$error":"#N/A"}}]
[null,null,null,null,null,null,null,null,null,{"$f":"VLOOKUP(D531,NOMS!$A:$B,2,FALSE)","v":{"$error":"#N/A"}}]
[null,null,null,null,null,null,null,null,null,{"$f":"VLOOKUP(D532,NOMS!$A:$B,2,FALSE)","v":{"$error":"#N/A"}}]
[null,null,null,null,null,null,null,null,null,{"$f":"VLOOKUP(D533,NOMS!$A:$B,2,FALSE)","v":{"$error":"#N/A"}}]
[null,null,null,null,null,null,null,null,null,{"$f":"VLOOKUP(D534,NOMS!$A:$B,2,FALSE)","v":{"$error":"#N/A"}}]
[null,null,null,null,null,null,null,null,null,{"$f":"VLOOKUP(D535,NOMS!$A:$B,2,FALSE)","v":{"$error":"#N/A"}}]
[null,null,null,null,null,null,null,null,null,{"$f":"VLOOKUP(D536,NOMS!$A:$B,2,FALSE)","v":{"$error":"#N/A"}}]
[null,null,null,null,null,null,null,null,null,{"$f":"VLOOKUP(D537,NOMS!$A:$B,2,FALSE)","v":{"$error":"#N/A"}}]
[null,null,null,null,null,null,null,null,null,{"$f":"VLOOKUP(D538,NOMS!$A:$B,2,FALSE)","v":{"$error":"#N/A"}}]
[null,null,null,null,null,null,null,null,null,{"$f":"VLOOKUP(D539,NOMS!$A:$B,2,FALSE)","v":{"$error":"#N/A"}}]
[null,null,null,null,null,null,null,null,null,{"$f":"VLOOKUP(D540,NOMS!$A:$B,2,FALSE)","v":{"$error":"#N/A"}}]
[null,null,null,null,null,null,null,null,null,{"$f":"VLOOKUP(D541,NOMS!$A:$B,2,FALSE)","v":{"$error":"#N/A"}}]
[null,null,null,null,null,null,null,null,null,{"$f":"VLOOKUP(D542,NOMS!$A:$B,2,FALSE)","v":{"$error":"#N/A"}}]
[null,null,null,null,null,null,null,null,null,{"$f":"VLOOKUP(D543,NOMS!$A:$B,2,FALSE)","v":{"$error":"#N/A"}}]
[null,null,null,null,null,null,null,null,null,{"$f":"VLOOKUP(D544,NOMS!$A:$B,2,FALSE)","v":{"$error":"#N/A"}}]
[null,null,null,null,null,null,null,null,null,{"$f":"VLOOKUP(D545,NOMS!$A:$B,2,FALSE)","v":{"$error":"#N/A"}}]
[null,null,null,null,null,null,null,null,null,{"$f":"VLOOKUP(D546,NOMS!$A:$B,2,FALSE)","v":{"$error":"#N/A"}}]
[null,null,null,null,null,null,null,null,null,{"$f":"VLOOKUP(D547,NOMS!$A:$B,2,FALSE)","v":{"$error":"#N/A"}}]
[null,null,null,null,null,null,null,null,null,{"$f":"VLOOKUP(D548,NOMS!$A:$B,2,FALSE)","v":{"$error":"#N/A"}}]
[null,null,null,null,null,null,null,null,null,{"$f":"VLOOKUP(D549,NOMS!$A:$B,2,FALSE)","v":{"$error":"#N/A"}}]
[null,null,null,null,null,null,null,null,null,{"$f":"VLOOKUP(D550,NOMS!$A:$B,2,FALSE)","v":{"$error":"#N/A"}}]
[null,null,null,null,null,null,null,null,null,{"$f":"VLOOKUP(D551,NOMS!$A:$B,2,FALSE)","v":{"$error":"#N/A"}}]
[null,null,null,null,null,null,null,null,null,{"$f":"VLOOKUP(D552,NOMS!$A:$B,2,FALSE)","v":{"$error":"#N/A"}}]
[null,null,null,null,null,null,null,null,null,{"$f":"VLOOKUP(D553,NOMS!$A:$B,2,FALSE)","v":{"$error":"#N/A"}}]
[null,null,null,null,null,null,null,null,null,{"$f":"VLOOKUP(D554,NOMS!$A:$B,2,FALSE)","v":{"$error":"#N/A"}}]
[null,null,null,null,null,null,null,null,null,{"$f":"VLOOKUP(D555,NOMS!$A:$B,2,FALSE)","v":{"$error":"#N/A"}}]
[null,null,null,null,null,null,null,null,null,{"$f":"VLOOKUP(D556,NOMS!$A:$B,2,FALSE)","v":{"$error":"#N/A"}}]
[null,null,null,null,null,null,null,null,null,{"$f":"VLOOKUP(D557,NOMS!$A:$B,2,FALSE)","v":{"$error":"#N/A"}}]
[null,null,null,null,null,null,null,null,null,{"$f":"VLOOKUP(D558,NOMS!$A:$B,2,FALSE)","v":{"$error":"#N/A"}}]
[null,null,null,null,null,null,null,null,null,{"$f":"VLOOKUP(D559,NOMS!$A:$B,2,FALSE)","v":{"$error":"#N/A"}}]
[null,null,null,null,null,null,null,null,null,{"$f":"VLOOKUP(D560,NOMS!$A:$B,2,FALSE)","v":{"$error":"#N/A"}}]
[null,null,null,null,null,null,null,null,null,{"$f":"VLOOKUP(D561,NOMS!$A:$B,2,FALSE)","v":{"$error":"#N/A"}}]
[null,null,null,null,null,null,null,null,null,{"$f":"VLOOKUP(D562,NOMS!$A:$B,2,FALSE)","v":{"$error":"#N/A"}}]
[null,null,null,null,null,null,null,null,null,{"$f":"VLOOKUP(D563,NOMS!$A:$B,2,FALSE)","v":{"$error":"#N/A"}}]
[null,null,null,null,null,null,null,null,null,{"$f":"VLOOKUP(D564,NOMS!$A:$B,2,FALSE)","v":{"$error":"#N/A"}}]
[null,null,null,null,null,null,null,null,null,{"$f":"VLOOKUP(D565,NOMS!$A:$B,2,FALSE)","v":{"$error":"#N/A"}}]
[null,null,null,null,null,null,null,null,null,{"$f":"VLOOKUP(D566,NOMS!$A:$B,2,FALSE)","v":{"$error":"#N/A"}}]
[null,null,null,null,null,null,null,null,null,{"$f":"VLOOKUP(D567,NOMS!$A:$B,2,FALSE)","v":{"$error":"#N/A"}}]
[null,null,null,null,null,null,null,null,null,{"$f":"VLOOKUP(D568,NOMS!$A:$B,2,FALSE)","v":{"$error":"#N/A"}}]
[null,null,null,null,null,null,null,null,null,{"$f":"VLOOKUP(D569,NOMS!$A:$B,2,FALSE)","v":{"$error":"#N/A"}}]
[null,null,null,null,null,null,null,null,null,{"$f":"VLOOKUP(D570,NOMS!$A:$B,2,FALSE)","v":{"$error":"#N/A"}}]
[null,null,null,null,null,null,null,null,null,{"$f":"VLOOKUP(D571,NOMS!$A:$B,2,FALSE)","v":{"$error":"#N/A"}}]
[null,null,null,null,null,null,null,null,null,{"$f":"VLOOKUP(D572,NOMS!$A:$B,2,FALSE)","v":{"$error":"#N/A"}}]
[null,null,null,null,null,null,null,null,null,{"$f":"VLOOKUP(D573,NOMS!$A:$B,2,FALSE)","v":{"$error":"#N/A"}}]
[null,null,null,null,null,null,null,null,null,{"$f":"VLOOKUP(D574,NOMS!$A:$B,2,FALSE)","v":{"$error":"#N/A"}}]
[null,null,null,null,null,null,null,null,null,{"$f":"VLOOKUP(D575,NOMS!$A:$B,2,FALSE)","v":{"$error":"#N/A"}}]
[null,null,null,null,null,null,null,null,null,{"$f":"VLOOKUP(D576,NOMS!$A:$B,2,FALSE)","v":{"$error":"#N/A"}}]
[null,null,null,null,null,null,null,null,null,{"$f":"VLOOKUP(D577,NOMS!$A:$B,2,FALSE)","v":{"$error":"#N/A"}}]
[null,null,null,null,null,null,null,null,null,{"$f":"VLOOKUP(D578,NOMS!$A:$B,2,FALSE)","v":{"$error":"#N/A"}}]
[null,null,null,null,null,null,null,null,null,{"$f":"VLOOKUP(D579,NOMS!$A:$B,2,FALSE)","v":{"$error":"#N/A"}}]
[null,null,null,null,null,null,null,null,null,{"$f":"VLOOKUP(D580,NOMS!$A:$B,2,FALSE)","v":{"$error":"#N/A"}}]
[null,null,null,null,null,null,null,null,null,{"$f":"VLOOKUP(D581,NOMS!$A:$B,2,FALSE)","v":{"$error":"#N/A"}}]
[null,null,null,null,null,null,null,null,null,{"$f":"VLOOKUP(D582,NOMS!$A:$B,2,FALSE)","v":{"$error":"#N/A"}}]
[null,null,null,null,null,null,null,null,null,{"$f":"VLOOKUP(D583,NOMS!$A:$B,2,FALSE)","v":{"$error":"#N/A"}}]
[null,null,null,null,null,null,null,null,null,{"$f":"VLOOKUP(D584,NOMS!$A:$B,2,FALSE)","v":{"$error":"#N/A"}}]
[null,null,null,null,null,null,null,null,null,{"$f":"VLOOKUP(D585,NOMS!$A:$B,2,FALSE)","v":{"$error":"#N/A"}}]
[null,null,null,null,null,null,null,null,null,{"$f":"VLOOKUP(D586,NOMS!$A:$B,2,FALSE)","v":{"$error":"#N/A"}}]
[null,null,null,null,null,null,null,null,null,{"$f":"VLOOKUP(D587,NOMS!$A:$B,2,FALSE)","v":{"$error":"#N/A"}}]
[null,null,null,null,null,null,null,null,null,{"$f":"VLOOKUP(D588,NOMS!$A:$B,2,FALSE)","v":{"$error":"#N/A"}}]
[null,null,null,null,null,null,null,null,null,{"$f":"VLOOKUP(D589,NOMS!$A:$B,2,FALSE)","v":{"$error":"#N/A"}}]
[null,null,null,null,null,null,null,null,null,{"$f":"VLOOKUP(D590,NOMS!$A:$B,2,FALSE)","v":{"$error":"#N/A"}}]
[null,null,null,null,null,null,null,null,null,{"$f":"VLOOKUP(D591,NOMS!$A:$B,2,FALSE)","v":{"$error":"#N/A"}}]
[null,null,null,null,null,null,null,null,null,{"$f":"VLOOKUP(D592,NOMS!$A:$B,2,FALSE)","v":{"$error":"#N/A"}}]
[null,null,null,null,null,null,null,null,null,{"$f":"VLOOKUP(D593,NOMS!$A:$B,2,FALSE)","v":{"$error":"#N/A"}}]
[null,null,null,null,null,null,null,null,null,{"$f":"VLOOKUP(D594,NOMS!$A:$B,2,FALSE)","v":{"$error":"#N/A"}}]
[null,null,null,null,null,null,null,null,null,{"$f":"VLOOKUP(D595,NOMS!$A:$B,2,FALSE)","v":{"$error":"#N/A"}}]
[null,null,null,null,null,null,null,null,null,{"$f":"VLOOKUP(D596,NOMS!$A:$B,2,FALSE)","v":{"$error":"#N/A"}}]
[null,null,null,null,null,null,null,null,null,{"$f":"VLOOKUP(D597,NOMS!$A:$B,2,FALSE)","v":{"$error":"#N/A"}}]
[null,null,null,null,null,null,null,null,null,{"$f":"VLOOKUP(D598,NOMS!$A:$B,2,FALSE)","v":{"$error":"#N/A"}}]
[null,null,null,null,null,null,null,null,null,{"$f":"VLOOKUP(D599,NOMS!$A:$B,2,FALSE)","v":{"$error":"#N/A"}}]
[null,null,null,null,null,null,null,null,null,{"$f":"VLOOKUP(D600,NOMS!$A:$B,2,FALSE)","v":{"$error":"#N/A"}}]
[null,null,null,null,null,null,null,null,null,{"$f":"VLOOKUP(D601,NOMS!$A:$B,2,FALSE)","v":{"$error":"#N/A"}}]
[null,null,null,null,null,null,null,null,null,{"$f":"VLOOKUP(D602,NOMS!$A:$B,2,FALSE)","v":{"$error":"#N/A"}}]
[null,null,null,null,null,null,null,null,null,{"$f":"VLOOKUP(D603,NOMS!$A:$B,2,FALSE)","v":{"$error":"#N/A"}}]
[null,null,null,null,null,null,null,null,null,{"$f":"VLOOKUP(D604,NOMS!$A:$B,2,FALSE)","v":{"$error":"#N/A"}}]
[null,null,null,null,null,null,null,null,null,{"$f":"VLOOKUP(D605,NOMS!$A:$B,2,FALSE)","v":{"$error":"#N/A"}}]
[null,null,null,null,null,null,null,null,null,{"$f":"VLOOKUP(D606,NOMS!$A:$B,2,FALSE)","v":{"$error":"#N/A"}}]
[null,null,null,null,null,null,null,null,null,{"$f":"VLOOKUP(D607,NOMS!$A:$B,2,FALSE)","v":{"$error":"#N/A"}}]
[null,null,null,null,null,null,null,null,null,{"$f":"VLOOKUP(D608,NOMS!$A:$B,2,FALSE)","v":{"$error":"#N/A"}}]
[null,null,null,null,null,null,null,null,null,{"$f":"VLOOKUP(D609,NOMS!$A:$B,2,FALSE)","v":{"$error":"#N/A"}}]
[null,null,null,null,null,null,null,null,null,{"$f":"VLOOKUP(D610,NOMS!$A:$B,2,FALSE)","v":{"$error":"#N/A"}}]
[null,null,null,null,null,null,null,null,null,{"$f":"VLOOKUP(D611,NOMS!$A:$B,2,FALSE)","v":{"$error":"#N/A"}}]
[null,null,null,null,null,null,null,null,null,{"$f":"VLOOKUP(D612,NOMS!$A:$B,2,FALSE)","v":{"$error":"#N/A"}}]
[null,null,null,null,null,null,null,null,null,{"$f":"VLOOKUP(D613,NOMS!$A:$B,2,FALSE)","v":{"$error":"#N/A"}}]
[null,null,null,null,null,null,null,null,null,{"$f":"VLOOKUP(D614,NOMS!$A:$B,2,FALSE)","v":{"$error":"#N/A"}}]
[null,null,null,null,null,null,null,null,null,{"$f":"VLOOKUP(D615,NOMS!$A:$B,2,FALSE)","v":{"$error":"#N/A"}}]
[null,null,null,null,null,null,null,null,null,{"$f":"VLOOKUP(D616,NOMS!$A:$B,2,FALSE)","v":{"$error":"#N/A"}}]
[null,null,null,null,null,null,null,null,null,{"$f":"VLOOKUP(D617,NOMS!$A:$B,2,FALSE)","v":{"$error":"#N/A"}}]
[null,null,null,null,null,null,null,null,null,{"$f":"VLOOKUP(D618,NOMS!$A:$B,2,FALSE)","v":{"$error":"#N/A"}}]
[null,null,null,null,null,null,null,null,null,{"$f":"VLOOKUP(D619,NOMS!$A:$B,2,FALSE)","v":{"$error":"#N/A"}}]
[null,null,null,null,null,null,null,null,null,{"$f":"VLOOKUP(D620,NOMS!$A:$B,2,FALSE)","v":{"$error":"#N/A"}}]
[null,null,null,null,null,null,null,null,null,{"$f":"VLOOKUP(D621,NOMS!$A:$B,2,FALSE)","v":{"$error":"#N/A"}}]
[null,null,null,null,null,null,null,null,null,{"$f":"VLOOKUP(D622,NOMS!$A:$B,2,FALSE)","v":{"$error":"#N/A"}}]
[null,null,null,null,null,null,null,null,null,{"$f":"VLOOKUP(D623,NOMS!$A:$B,2,FALSE)","v":{"$error":"#N/A"}}]
[null,null,null,null,null,null,null,null,null,{"$f":"VLOOKUP(D624,NOMS!$A:$B,2,FALSE)","v":{"$error":"#N/A"}}]
[null,null,null,null,null,null,null,null,null,{"$f":"VLOOKUP(D625,NOMS!$A:$B,2,FALSE)","v":{"$error":"#N/A"}}]
[null,null,null,null,null,null,null,null,null,{"$f":"VLOOKUP(D626,NOMS!$A:$B,2,FALSE)","v":{"$error":"#N/A"}}]
[null,null,null,null,null,null,null,null,null,{"$f":"VLOOKUP(D627,NOMS!$A:$B,2,FALSE)","v":{"$error":"#N/A"}}]
[null,null,null,null,null,null,null,null,null,{"$f":"VLOOKUP(D628,NOMS!$A:$B,2,FALSE)","v":{"$error":"#N/A"}}]
[null,null,null,null,null,null,null,null,null,{"$f":"VLOOKUP(D629,NOMS!$A:$B,2,FALSE)","v":{"$error":"#N/A"}}]
[null,null,null,null,null,null,null,null,null,{"$f":"VLOOKUP(D630,NOMS!$A:$B,2,FALSE)","v":{"$error":"#N/A"}}]
[null,null,null,null,null,null,null,null,null,{"$f":"VLOOKUP(D631,NOMS!$A:$B,2,FALSE)","v":{"$error":"#N/A"}}]
[null,null,null,null,null,null,null,null,null,{"$f":"VLOOKUP(D632,NOMS!$A:$B,2,FALSE)","v":{"$error":"#N/A"}}]
[null,null,null,null,null,null,null,null,null,{"$f":"VLOOKUP(D633,NOMS!$A:$B,2,FALSE)","v":{"$error":"#N/A"}}]
[null,null,null,null,null,null,null,null,null,{"$f":"VLOOKUP(D634,NOMS!$A:$B,2,FALSE)","v":{"$error":"#N/A"}}]
[null,null,null,null,null,null,null,null,null,{"$f":"VLOOKUP(D635,NOMS!$A:$B,2,FALSE)","v":{"$error":"#N/A"}}]
[null,null,null,null,null,null,null,null,null,{"$f":"VLOOKUP(D636,NOMS!$A:$B,2,FALSE)","v":{"$error":"#N/A"}}]
[null,null,null,null,null,null,null,null,null,{"$f":"VLOOKUP(D637,NOMS!$A:$B,2,FALSE)","v":{"$error":"#N/A"}}]
[null,null,null,null,null,null,null,null,null,{"$f":"VLOOKUP(D638,NOMS!$A:$B,2,FALSE)","v":{"$error":"#N/A"}}]
[null,null,null,null,null,null,null,null,null,{"$f":"VLOOKUP(D639,NOMS!$A:$B,2,FALSE)","v":{"$error":"#N/A"}}]
[null,null,null,null,null,null,null,null,null,{"$f":"VLOOKUP(D640,NOMS!$A:$B,2,FALSE)","v":{"$error":"#N/A"}}]
[null,null,null,null,null,null,null,null,null,{"$f":"VLOOKUP(D641,NOMS!$A:$B,2,FALSE)","v":{"$error":"#N/A"}}]
[null,null,null,null,null,null,null,null,null,{"$f":"VLOOKUP(D642,NOMS!$A:$B,2,FALSE)","v":{"$error":"#N/A"}}]
[null,null,null,null,null,null,null,null,null,{"$f":"VLOOKUP(D643,NOMS!$A:$B,2,FALSE)","v":{"$error":"#N/A"}}]
[null,null,null,null,null,null,null,null,null,{"$f":"VLOOKUP(D644,NOMS!$A:$B,2,FALSE)","v":{"$error":"#N/A"}}]
[null,null,null,null,null,null,null,null,null,{"$f":"VLOOKUP(D645,NOMS!$A:$B,2,FALSE)","v":{"$error":"#N/A"}}]
[null,null,null,null,null,null,null,null,null,{"$f":"VLOOKUP(D646,NOMS!$A:$B,2,FALSE)","v":{"$error":"#N/A"}}]
[null,null,null,null,null,null,null,null,null,{"$f":"VLOOKUP(D647,NOMS!$A:$B,2,FALSE)","v":{"$error":"#N/A"}}]
[null,null,null,null,null,null,null,null,null,{"$f":"VLOOKUP(D648,NOMS!$A:$B,2,FALSE)","v":{"$error":"#N/A"}}]
[null,null,null,null,null,null,null,null,null,{"$f":"VLOOKUP(D649,NOMS!$A:$B,2,FALSE)","v":{"$error":"#N/A"}}]
[null,null,null,null,null,null,null,null,null,{"$f":"VLOOKUP(D650,NOMS!$A:$B,2,FALSE)","v":{"$error":"#N/A"}}]
[null,null,null,null,null,null,null,null,null,{"$f":"VLOOKUP(D651,NOMS!$A:$B,2,FALSE)","v":{"$error":"#N/A"}}]
[null,null,null,null,null,null,null,null,null,{"$f":"VLOOKUP(D652,NOMS!$A:$B,2,FALSE)","v":{"$error":"#N/A"}}]
[null,null,null,null,null,null,null,null,null,{"$f":"VLOOKUP(D653,NOMS!$A:$B,2,FALSE)","v":{"$error":"#N/A"}}]
[null,null,null,null,null,null,null,null,null,{"$f":"VLOOKUP(D654,NOMS!$A:$B,2,FALSE)","v":{"$error":"#N/A"}}]
[null,null,null,null,null,null,null,null,null,{"$f":"VLOOKUP(D655,NOMS!$A:$B,2,FALSE)","v":{"$error":"#N/A"}}]
[null,null,null,null,null,null,null,null,null,{"$f":"VLOOKUP(D656,NOMS!$A:$B,2,FALSE)","v":{"$error":"#N/A"}}]
[null,null,null,null,null,null,null,null,null,{"$f":"VLOOKUP(D657,NOMS!$A:$B,2,FALSE)","v":{"$error":"#N/A"}}]
[null,null,null,null,null,null,null,null,null,{"$f":"VLOOKUP(D658,NOMS!$A:$B,2,FALSE)","v":{"$error":"#N/A"}}]
[null,null,null,null,null,null,null,null,null,{"$f":"VLOOKUP(D659,NOMS!$A:$B,2,FALSE)","v":{"$error":"#N/A"}}]
[null,null,null,null,null,null,null,null,null,{"$f":"VLOOKUP(D660,NOMS!$A:$B,2,FALSE)","v":{"$error":"#N/A"}}]
[null,null,null,null,null,null,null,null,null,{"$f":"VLOOKUP(D661,NOMS!$A:$B,2,FALSE)","v":{"$error":"#N/A"}}]
[null,null,null,null,null,null,null,null,null,{"$f":"VLOOKUP(D662,NOMS!$A:$B,2,FALSE)","v":{"$error":"#N/A"}}]
[null,null,null,null,null,null,null,null,null,{"$f":"VLOOKUP(D663,NOMS!$A:$B,2,FALSE)","v":{"$error":"#N/A"}}]
[null,null,null,null,null,null,null,null,null,{"$f":"VLOOKUP(D664,NOMS!$A:$B,2,FALSE)","v":{"$error":"#N/A"}}]
[null,null,null,null,null,null,null,null,null,{"$f":"VLOOKUP(D665,NOMS!$A:$B,2,FALSE)","v":{"$error":"#N/A"}}]
[null,null,null,null,null,null,null,null,null,{"$f":"VLOOKUP(D666,NOMS!$A:$B,2,FALSE)","v":{"$error":"#N/A"}}]
[null,null,null,null,null,null,null,null,null,{"$f":"VLOOKUP(D667,NOMS!$A:$B,2,FALSE)","v":{"$error":"#N/A"}}]
[null,null,null,null,null,null,null,null,null,{"$f":"VLOOKUP(D668,NOMS!$A:$B,2,FALSE)","v":{"$error":"#N/A"}}]
[null,null,null,null,null,null,null,null,null,{"$f":"VLOOKUP(D669,NOMS!$A:$B,2,FALSE)","v":{"$error":"#N/A"}}]
[null,null,null,null,null,null,null,null,null,{"$f":"VLOOKUP(D670,NOMS!$A:$B,2,FALSE)","v":{"$error":"#N/A"}}]
[null,null,null,null,null,null,null,null,null,{"$f":"VLOOKUP(D671,NOMS!$A:$B,2,FALSE)","v":{"$error":"#N/A"}}]
[null,null,null,null,null,null,null,null,null,{"$f":"VLOOKUP(D672,NOMS!$A:$B,2,FALSE)","v":{"$error":"#N/A"}}]
[null,null,null,null,null,null,null,null,null,{"$f":"VLOOKUP(D673,NOMS!$A:$B,2,FALSE)","v":{"$error":"#N/A"}}]
[null,null,null,null,null,null,null,null,null,{"$f":"VLOOKUP(D674,NOMS!$A:$B,2,FALSE)","v":{"$error":"#N/A"}}]
[null,null,null,null,null,null,null,null,null,{"$f":"VLOOKUP(D675,NOMS!$A:$B,2,FALSE)","v":{"$error":"#N/A"}}]
[null,null,null,null,null,null,null,null,null,{"$f":"VLOOKUP(D676,NOMS!$A:$B,2,FALSE)","v":{"$error":"#N/A"}}]
[null,null,null,null,null,null,null,null,null,{"$f":"VLOOKUP(D677,NOMS!$A:$B,2,FALSE)","v":{"$error":"#N/A"}}]
[null,null,null,null,null,null,null,null,null,{"$f":"VLOOKUP(D678,NOMS!$A:$B,2,FALSE)","v":{"$error":"#N/A"}}]
[null,null,null,null,null,null,null,null,null,{"$f":"VLOOKUP(D679,NOMS!$A:$B,2,FALSE)","v":{"$error":"#N/A"}}]
[null,null,null,null,null,null,null,null,null,{"$f":"VLOOKUP(D680,NOMS!$A:$B,2,FALSE)","v":{"$error":"#N/A"}}]
[null,null,null,null,null,null,null,null,null,{"$f":"VLOOKUP(D681,NOMS!$A:$B,2,FALSE)","v":{"$error":"#N/A"}}]
[null,null,null,null,null,null,null,null,null,{"$f":"VLOOKUP(D682,NOMS!$A:$B,2,FALSE)","v":{"$error":"#N/A"}}]
[null,null,null,null,null,null,null,null,null,{"$f":"VLOOKUP(D683,NOMS!$A:$B,2,FALSE)","v":{"$error":"#N/A"}}]
[null,null,null,null,null,null,null,null,null,{"$f":"VLOOKUP(D684,NOMS!$A:$B,2,FALSE)","v":{"$error":"#N/A"}}]
[null,null,null,null,null,null,null,null,null,{"$f":"VLOOKUP(D685,NOMS!$A:$B,2,FALSE)","v":{"$error":"#N/A"}}]
[null,null,null,null,null,null,null,null,null,{"$f":"VLOOKUP(D686,NOMS!$A:$B,2,FALSE)","v":{"$error":"#N/A"}}]
[null,null,null,null,null,null,null,null,null,{"$f":"VLOOKUP(D687,NOMS!$A:$B,2,FALSE)","v":{"$error":"#N/A"}}]
[null,null,null,null,null,null,null,null,null,{"$f":"VLOOKUP(D688,NOMS!$A:$B,2,FALSE)","v":{"$error":"#N/A"}}]
[null,null,null,null,null,null,null,null,null,{"$f":"VLOOKUP(D689,NOMS!$A:$B,2,FALSE)","v":{"$error":"#N/A"}}]
[null,null,null,null,null,null,null,null,null,{"$f":"VLOOKUP(D690,NOMS!$A:$B,2,FALSE)","v":{"$error":"#N/A"}}]
[null,null,null,null,null,null,null,null,null,{"$f":"VLOOKUP(D691,NOMS!$A:$B,2,FALSE)","v":{"$error":"#N/A"}}]
[null,null,null,null,null,null,null,null,null,{"$f":"VLOOKUP(D692,NOMS!$A:$B,2,FALSE)","v":{"$error":"#N/A"}}]
[null,null,null,null,null,null,null,null,null,{"$f":"VLOOKUP(D693,NOMS!$A:$B,2,FALSE)","v":{"$error":"#N/A"}}]
[null,null,null,null,null,null,null,null,null,{"$f":"VLOOKUP(D694,NOMS!$A:$B,2,FALSE)","v":{"$error":"#N/A"}}]
[null,null,null,null,null,null,null,null,null,{"$f":"VLOOKUP(D695,NOMS!$A:$B,2,FALSE)","v":{"$error":"#N/A"}}]
[null,null,null,null,null,null,null,null,null,{"$f":"VLOOKUP(D696,NOMS!$A:$B,2,FALSE)","v":{"$error":"#N/A"}}]
[null,null,null,null,null,null,null,null,null,{"$f":"VLOOKUP(D697,NOMS!$A:$B,2,FALSE)","v":{"$error":"#N/A"}}]
[null,null,null,null,null,null,null,null,null,{"$f":"VLOOKUP(D698,NOMS!$A:$B,2,FALSE)","v":{"$error":"#N/A"}}]
[null,null,null,null,null,null,null,null,null,{"$f":"VLOOKUP(D699,NOMS!$A:$B,2,FALSE)","v":{"$error":"#N/A"}}]
[null,null,null,null,null,null,null,null,null,{"$f":"VLOOKUP(D700,NOMS!$A:$B,2,FALSE)","v":{"$error":"#N/A"}}]
[null,null,null,null,null,null,null,null,null,{"$f":"VLOOKUP(D701,NOMS!$A:$B,2,FALSE)","v":{"$error":"#N/A"}}]
[null,null,null,null,null,null,null,null,null,{"$f":"VLOOKUP(D702,NOMS!$A:$B,2,FALSE)","v":{"$error":"#N/A"}}]
[null,null,null,null,null,null,null,null,null,{"$f":"VLOOKUP(D703,NOMS!$A:$B,2,FALSE)","v":{"$error":"#N/A"}}]
[null,null,null,null,null,null,null,null,null,{"$f":"VLOOKUP(D704,NOMS!$A:$B,2,FALSE)","v":{"$error":"#N/A"}}]
[null,null,null,null,null,null,null,null,null,{"$f":"VLOOKUP(D705,NOMS!$A:$B,2,FALSE)","v":{"$error":"#N/A"}}]
[null,null,null,null,null,null,null,null,null,{"$f":"VLOOKUP(D706,NOMS!$A:$B,2,FALSE)","v":{"$error":"#N/A"}}]
[null,null,null,null,null,null,null,null,null,{"$f":"VLOOKUP(D707,NOMS!$A:$B,2,FALSE)","v":{"$error":"#N/A"}}]
[null,null,null,null,null,null,null,null,null,{"$f":"VLOOKUP(D708,NOMS!$A:$B,2,FALSE)","v":{"$error":"#N/A"}}]
[null,null,null,null,null,null,null,null,null,{"$f":"VLOOKUP(D709,NOMS!$A:$B,2,FALSE)","v":{"$error":"#N/A"}}]
[null,null,null,null,null,null,null,null,null,{"$f":"VLOOKUP(D710,NOMS!$A:$B,2,FALSE)","v":{"$error":"#N/A"}}]
[null,null,null,null,null,null,null,null,null,{"$f":"VLOOKUP(D711,NOMS!$A:$B,2,FALSE)","v":{"$error":"#N/A"}}]
[null,null,null,null,null,null,null,null,null,{"$f":"VLOOKUP(D712,NOMS!$A:$B,2,FALSE)","v":{"$error":"#N/A"}}]
[null,null,null,null,null,null,null,null,null,{"$f":"VLOOKUP(D713,NOMS!$A:$B,2,FALSE)","v":{"$error":"#N/A"}}]
[null,null,null,null,null,null,null,null,null,{"$f":"VLOOKUP(D714,NOMS!$A:$B,2,FALSE)","v":{"$error":"#N/A"}}]
[null,null,null,null,null,null,null,null,null,{"$f":"VLOOKUP(D715,NOMS!$A:$B,2,FALSE)","v":{"$error":"#N/A"}}]
[null,null,null,null,null,null,null,null,null,{"$f":"VLOOKUP(D716,NOMS!$A:$B,2,FALSE)","v":{"$error":"#N/A"}}]
[null,null,null,null,null,null,null,null,null,{"$f":"VLOOKUP(D717,NOMS!$A:$B,2,FALSE)","v":{"$error":"#N/A"}}]
[null,null,null,null,null,null,null,null,null,{"$f":"VLOOKUP(D718,NOMS!$A:$B,2,FALSE)","v":{"$error":"#N/A"}}]
[null,null,null,null,null,null,null,null,null,{"$f":"VLOOKUP(D719,NOMS!$A:$B,2,FALSE)","v":{"$error":"#N/A"}}]
[null,null,null,null,null,null,null,null,null,{"$f":"VLOOKUP(D720,NOMS!$A:$B,2,FALSE)","v":{"$error":"#N/A"}}]
[null,null,null,null,null,null,null,null,null,{"$f":"VLOOKUP(D721,NOMS!$A:$B,2,FALSE)","v":{"$error":"#N/A"}}]
[null,null,null,null,null,null,null,null,null,{"$f":"VLOOKUP(D722,NOMS!$A:$B,2,FALSE)","v":{"$error":"#N/A"}}]
[null,null,null,null,null,null,null,null,null,{"$f":"VLOOKUP(D723,NOMS!$A:$B,2,FALSE)","v":{"$error":"#N/A"}}]
[null,null,null,null,null,null,null,null,null,{"$f":"VLOOKUP(D724,NOMS!$A:$B,2,FALSE)","v":{"$error":"#N/A"}}]
[null,null,null,null,null,null,null,null,null,{"$f":"VLOOKUP(D725,NOMS!$A:$B,2,FALSE)","v":{"$error":"#N/A"}}]
[null,null,null,null,null,null,null,null,null,{"$f":"VLOOKUP(D726,NOMS!$A:$B,2,FALSE)","v":{"$error":"#N/A"}}]
[null,null,null,null,null,null,null,null,null,{"$f":"VLOOKUP(D727,NOMS!$A:$B,2,FALSE)","v":{"$error":"#N/A"}}]
[null,null,null,null,null,null,null,null,null,{"$f":"VLOOKUP(D728,NOMS!$A:$B,2,FALSE)","v":{"$error":"#N/A"}}]
[null,null,null,null,null,null,null,null,null,{"$f":"VLOOKUP(D729,NOMS!$A:$B,2,FALSE)","v":{"$error":"#N/A"}}]
[null,null,null,null,null,null,null,null,null,{"$f":"VLOOKUP(D730,NOMS!$A:$B,2,FALSE)","v":{"$error":"#N/A"}}]
[null,null,null,null,null,null,null,null,null,{"$f":"VLOOKUP(D731,NOMS!$A:$B,2,FALSE)","v":{"$error":"#N/A"}}]
[null,null,null,null,null,null,null,null,null,{"$f":"VLOOKUP(D732,NOMS!$A:$B,2,FALSE)","v":{"$error":"#N/A"}}]
[null,null,null,null,null,null,null,null,null,{"$f":"VLOOKUP(D733,NOMS!$A:$B,2,FALSE)","v":{"$error":"#N/A"}}]
[null,null,null,null,null,null,null,null,null,{"$f":"VLOOKUP(D734,NOMS!$A:$B,2,FALSE)","v":{"$error":"#N/A"}}]
[null,null,null,null,null,null,null,null,null,{"$f":"VLOOKUP(D735,NOMS!$A:$B,2,FALSE)","v":{"$error":"#N/A"}}]
[null,null,null,null,null,null,null,null,null,{"$f":"VLOOKUP(D736,NOMS!$A:$B,2,FALSE)","v":{"$error":"#N/A"}}]
[null,null,null,null,null,null,null,null,null,{"$f":"VLOOKUP(D737,NOMS!$A:$B,2,FALSE)","v":{"$error":"#N/A"}}]
[null,null,null,null,null,null,null,null,null,{"$f":"VLOOKUP(D738,NOMS!$A:$B,2,FALSE)","v":{"$error":"#N/A"}}]
[null,null,null,null,null,null,null,null,null,{"$f":"VLOOKUP(D739,NOMS!$A:$B,2,FALSE)","v":{"$error":"#N/A"}}]
[null,null,null,null,null,null,null,null,null,{"$f":"VLOOKUP(D740,NOMS!$A:$B,2,FALSE)","v":{"$error":"#N/A"}}]
[null,null,null,null,null,null,null,null,null,{"$f":"VLOOKUP(D741,NOMS!$A:$B,2,FALSE)","v":{"$error":"#N/A"}}]
[null,null,null,null,null,null,null,null,null,{"$f":"VLOOKUP(D742,NOMS!$A:$B,2,FALSE)","v":{"$error":"#N/A"}}]
[null,null,null,null,null,null,null,null,null,{"$f":"VLOOKUP(D743,NOMS!$A:$B,2,FALSE)","v":{"$error":"#N/A"}}]
[null,null,null,null,null,null,null,null,null,{"$f":"VLOOKUP(D744,NOMS!$A:$B,2,FALSE)","v":{"$error":"#N/A"}}]
[null,null,null,null,null,null,null,null,null,{"$f":"VLOOKUP(D745,NOMS!$A:$B,2,FALSE)","v":{"$error":"#N/A"}}]
[null,null,null,null,null,null,null,null,null,{"$f":"VLOOKUP(D746,NOMS!$A:$B,2,FALSE)","v":{"$error":"#N/A"}}]
[null,null,null,null,null,null,null,null,null,{"$f":"VLOOKUP(D747,NOMS!$A:$B,2,FALSE)","v":{"$error":"#N/A"}}]
[null,null,null,null,null,null,null,null,null,{"$f":"VLOOKUP(D748,NOMS!$A:$B,2,FALSE)","v":{"$error":"#N/A"}}]
[null,null,null,null,null,null,null,null,null,{"$f":"VLOOKUP(D749,NOMS!$A:$B,2,FALSE)","v":{"$error":"#N/A"}}]
[null,null,null,null,null,null,null,null,null,{"$f":"VLOOKUP(D750,NOMS!$A:$B,2,FALSE)","v":{"$error":"#N/A"}}]
[null,null,null,null,null,null,null,null,null,{"$f":"VLOOKUP(D751,NOMS!$A:$B,2,FALSE)","v":{"$error":"#N/A"}}]
[null,null,null,null,null,null,null,null,null,{"$f":"VLOOKUP(D752,NOMS!$A:$B,2,FALSE)","v":{"$error":"#N/A"}}]
[null,null,null,null,null,null,null,null,null,{"$f":"VLOOKUP(D753,NOMS!$A:$B,2,FALSE)","v":{"$error":"#N/A"}}]

{"sheet":"Banques","index":7,"n_rows":209,"n_cols":14,"rows_kept":209,"cut":false,"hidden":true,"merged":[]}
["Date opérat.",null,null,"Compte","Rèf","Credit Agricole ","Débit","Crédit"]
["2022-05-09",null,5,512101,null,"Subvention de fonctionnement reçue l’employeur",16141]
["2022-05-09",null,7,756010,null,"Subvention de fonctionnement reçue l’employeur",null,16141]
["2022-05-20",null,5,512100,null,"Subvention de fonctionnement reçue l’employeur",94278]
["2022-05-20",null,7,756020,null,"Contribution ASC reçue de l’employeur",null,94278]
["2022-07-01",null,4,421001,"Remb Avance","Remboursement YL Achat Dictaphonne DIGITAL",150]
["2022-07-01",null,5,512101,null,"Remboursement YL Achat Dictaphonne DIGITAL",null,150]
["2022-06-13",null,4,421006,"voyage","ASC Amina ISCAYE",1500]
["2022-06-13",null,5,512100,null,"ASC Amina ISCAYE",null,1500]
["2022-06-13",null,4,421015,"voyage","ASC Mireille ROCHE",1500]
["2022-06-13",null,5,512100,null,"ASC Mireille ROCHE",null,1500]
["2022-06-13",null,4,421004,"voyage","ASC Muriel DE GENTIL",1500]
["2022-06-13",null,5,512100,null,"ASC Muriel DE GENTIL",null,1500]
["2022-06-13",null,4,421003,"voyage","ASC Lydie RESON",1500,null,null,"Adelmas NESLIDE"]
["2022-06-13",null,5,512100,null,"ASC Lydie RESON",null,1500]
["2022-06-16",null,4,421008,"voyage","ASC Stéphanie LUBIN",1500]
["2022-06-16",null,5,512100,null,"ASC Stéphanie LUBIN",null,1500]
["2022-06-17",null,4,421001,"voyage","ASC Yohan LASSALLE",1500]
["2022-06-17",null,5,512100,null,"ASC Yohan LASSALLE",null,1500]
["2022-08-04",null,4,421026,"voyage","ASC Adelmas NESLIDE",661.14]
["2022-08-04",null,5,512100,null,"ASC Adelmas NESLIDE",null,661.14]
["2022-08-29",null,4,421010,"voyage","ASC Olivia LAPORAL",880.24]
["2022-08-29",null,5,512100,null,"ASC Olivia LAPORAL",null,880.24]
["2022-08-31",null,4,421010,"voyage","ASC Olivia LAPORAL",316.05]
["2022-08-31",null,5,512100,null,"ASC Olivia LAPORAL",null,316.05]
["2022-08-31",null,4,421010,"Sport et loisirs","ASC Olivia LAPORAL",159.6]
["2022-08-31",null,5,512100,null,"ASC Olivia LAPORAL",null,159.6]
["2022-08-31",null,4,421010,"Noel employé","ASC Olivia LAPORAL",144.11000000000001]
["2022-08-31",null,5,512100,null,"ASC Olivia LAPORAL",null,144.11000000000001]
["2022-08-22",null,4,421002,"Sport et loisirs","ASC Eric CHARTON",707]
["2022-08-22",null,5,512100,null,"ASC Eric CHARTON",null,707]
["2022-08-26",null,4,421019,"voyage","ASC Mylene MARTIN",1500]
["2022-08-26",null,5,512100,null,"ASC Mylene MARTIN",null,1500]
["2022-08-29",null,4,421013,"voyage","ASC Chrsitelle CHOUAN",1500]
["2022-08-29",null,5,512100,null,"ASC Chrsitelle CHOUAN",null,1500]
["2022-08-29",null,4,421014,"Sport et loisirs","ASC Camille GUYOT",1000]
["2022-08-29",null,5,512100,null,"ASC Camille GUYOT",null,1000]
["2022-08-30",null,4,421001,"Remb Avance","Remboursement YL FourniBuro",103.94]
["2022-08-30",null,5,512101,null,"Remboursement YL FourniBuro",null,103.94]
["2022-09-02",null,4,421021,"voyage","ASC Max NOSIBOR",1500]
["2022-09-02",null,5,512100,null,"ASC Max NOSIBOR",null,1500]
["2022-09-05",null,4,421009,"voyage","ASC Eddy LORBEL",1500]
["2022-09-05",null,5,512100,null,"ASC Eddy LORBEL",null,1500]
["2022-09-06",null,4,421012,"voyage","ASC Lydia Thalmsensi",1126.6300000000001]
["2022-09-06",null,5,512100,null,"ASC Lydia Thalmsensi",null,1126.6300000000001]
["2022-09-19",null,4,421023,"Sport et loisirs","ASC ANAIS LERUS",174.55]
["2022-09-19",null,5,512100,null,"ASC ANAIS LERUS",null,174.55]
["2022-09-19",null,4,421023,"voyage","ASC ANAIS LERUS",1325.45]
["2022-09-19",null,5,512100,null,"ASC ANAIS LERUS",null,1325.45]
["2022-11-03",null,4,421016,"voyage","ASC Guy RAMALINGON",1500]
["2022-11-03",null,5,512100,null,"ASC Guy RAMALINGON",null,1500]
["2022-11-04",null,4,421002,"Sport et loisirs","ASC Eric CHARTON",400]
["2022-11-04",null,5,512100,null,"ASC Eric CHARTON",null,400]
["2022-11-10",null,4,421017,"voyage","ASC Raissa LUSINE",1000]
["2022-11-10",null,5,512100,null,"ASC Raissa LUSINE",null,1000]
[]
[]
[]
[]
[]
[]
[]
[]
[]
[]
[]
[]
[]
[]
[]
[]
[]
[]
[]
[]
[]
[]
[]
[]
[]
[]
[]
[]
[]
[]
[]
[]
[]
[]
[]
[]
[]
[]
[]
[]
[]
[]
[]
[]
[]
[]
[]
[]
[null,null,null,null,null,null,null,null,null,null,null,59800,3000,{"$f":"L104+M104","v":62800}]
[]
[]
[]
[]
[]
[]
[]
[]
[]
[]
[]
[]
[]
[]
[]
[]
[]
[]
[]
[]
[]
[]
[]
[]
[]
[]
[]
[]
[]
[]
[]
[]
[]
[]
[]
[]
[]
[]
[]
[]
[]
[]
[]
[]
[]
[]
[]
[]
[]
[]
[]
[]
[]
[]
[]
[]
[]
[]
[]
[]
[]
[]
[]
[]
[]
[]
[]
[]
[]
[]
[]
[]
[]
[]
[]
[]
[]
[]
[]
[]
[]
[]
[]
[]
[]
[]
[]
[null,null,null,null,null,null,{"$f":"SUM(G2:G191)","v":135067.71000000002},{"$f":"SUM(H2:H191)","v":135067.71000000002}]
[]
["Date opérat.",null,null,"Compte","Rèf","B N P   S. C. I.","Débit","Crédit"]
[]
[]
[]
[]
[]
[]
[]
[]
[]
[]
[]
[]
[]
[]
[null,null,null,null,null,null,{"$f":"SUM(G195:G208)","v":0},{"$f":"SUM(H195:H208)","v":0}]

{"sheet":"OD","index":8,"n_rows":308,"n_cols":9,"rows_kept":308,"cut":false,"hidden":true,"merged":[]}
["2022-07-01",null,4,421001,null,"Achat Dictaphonne DIGITAL",null,150]
["2022-07-01",null,4,"401001",null,"Achat Dictaphonne DIGITAL",150]
["2022-06-13",null,6,647000,null,"ASC Amina ISCAYE",1500]
["2022-06-13",null,4,421006,null,"ASC Amina ISCAYE",null,1500," "]
["2022-06-13",null,1,155006,null,"Retour Provision Amina",1500]
["2022-06-13",null,7,787500,null,"Retour Provision Amina",null,1500]
["2022-05-20",null,6,681500,null,"Provision Budget ASC 2022",39000]
["2022-05-20",null,1,155001,null,"Provision Budget ASC 2022",null,1500]
["2022-05-20",null,1,155002,null,"Provision Budget ASC 2022",null,1500]
["2022-05-20",null,1,155003,null,"Provision Budget ASC 2022",null,1500]
["2022-05-20",null,1,155004,null,"Provision Budget ASC 2022",null,1500]
["2022-05-20",null,1,155005,null,"Provision Budget ASC 2022",null,0," "]
["2022-05-20",null,1,155006,null,"Provision Budget ASC 2022",null,1500]
["2022-05-20",null,1,155007,null,"Provision Budget ASC 2022",null,1500]
["2022-05-20",null,1,155008,null,"Provision Budget ASC 2022",null,1500]
["2022-05-20",null,1,155009,null,"Provision Budget ASC 2022",null,1500]
["2022-05-20",null,1,155010,null,"Provision Budget ASC 2022",null,1500]
["2022-05-20",null,1,155011,null,"Provision Budget ASC 2022",null,1500]
["2022-05-20",null,1,155012,null,"Provision Budget ASC 2022",null,1500]
["2022-05-20",null,1,155013,null,"Provision Budget ASC 2022",null,1500]
["2022-05-20",null,1,155014,null,"Provision Budget ASC 2022",null,1500]
["2022-05-20",null,1,155015,null,"Provision Budget ASC 2022",null,1500," "]
["2022-05-20",null,1,155016,null,"Provision Budget ASC 2022",null,1500]
["2022-05-20",null,1,155017,null,"Provision Budget ASC 2022",null,1500]
["2022-05-20",null,1,155018,null,"Provision Budget ASC 2022",null,1500]
["2022-05-20",null,1,155019,null,"Provision Budget ASC 2022",null,1500]
["2022-05-20",null,1,155020,null,"Provision Budget ASC 2022",null,1500]
["2022-05-20",null,1,155021,null,"Provision Budget ASC 2022",null,1500]
["2022-05-20",null,1,155022,null,"Provision Budget ASC 2022",null,1500]
["2022-05-20",null,1,155023,null,"Provision Budget ASC 2022",null,1500]
["2022-05-20",null,1,155024,null,"Provision Budget ASC 2022",null,1500]
["2022-05-20",null,1,155025,null,"Provision Budget ASC 2022",null,1500]
["2022-05-20",null,1,155026,null,"Provision Budget ASC 2022",null,1500]
["2022-06-13",null,6,647000,null,"ASC Mireille ROCHE",1500]
["2022-06-13",null,4,421015,null,"ASC Mireille ROCHE",null,1500]
["2022-06-13",null,1,155015,null,"Retour Provision Mireille ROCHE",1500]
["2022-06-13",null,7,787500,null,"Retour Provision Mireille ROCHE",null,1500]
["2022-06-13",null,6,647000,null,"ASC Muriel DE GENTIL",1500]
["2022-06-13",null,4,421004,null,"ASC Muriel DE GENTIL",null,1500]
["2022-06-13",null,1,155004,null,"Retour Provision Muriel DE GENTIL",1500]
["2022-06-13",null,7,787500,null,"Retour Provision Muriel DE GENTIL",null,1500]
["2022-06-13",null,6,647000,null,"ASC Lydie RESON",1500]
["2022-06-13",null,4,421003,null,"ASC Lydie RESON",null,1500]
["2022-06-13",null,1,155003,null,"Retour Provision Lydie RESON",1500]
["2022-06-13",null,7,787500,null,"Retour Provision Lydie RESON",null,1500]
["2022-06-16",null,6,647000,null,"ASC Stéphanie LUBIN",1500]
["2022-06-16",null,4,421008,null,"ASC Stéphanie LUBIN",null,1500]
["2022-06-16",null,1,155008,null,"Retour Provision Stéphanie LUBIN",1500]
["2022-06-16",null,7,787500,null,"Retour Provision Stéphanie LUBIN",null,1500]
["2022-06-17",null,6,647000,null,"ASC Yohan LASSALLE",1500]
["2022-06-17",null,4,421001,null,"ASC Yohan LASSALLE",null,1500]
["2022-06-17",null,1,155001,null,"Retour Provision Yohan LASSALLE",1500]
["2022-06-17",null,7,787500,null,"Retour Provision Yohan LASSALLE",null,1500]
["2022-08-04",null,6,647000,null,"ASC Adelmas NESLIDE",661.14]
["2022-08-04",null,4,421026,null,"ASC Adelmas NESLIDE",null,661.14]
["2022-08-04",null,1,155026,null,"Retour Provision Adelmas NESLIDE",661.14]
["2022-08-04",null,7,787500,null,"Retour Provision Adelmas NESLIDE",null,661.14]
["2022-08-29",null,1,155010,null,"Retour Provision Olivia LAPORAL",880.24]
["2022-08-29",null,7,787500,null,"Retour Provision Olivia LAPORAL",null,880.24]
["2022-08-31",null,1,155010,"voyage","Retour Provision Olivia LAPORAL",316.05]
["2022-08-31",null,7,787500,null,"Retour Provision Olivia LAPORAL",null,316.05]
["2022-08-31",null,1,155010,"Sport et loisirs","Retour Provision Olivia LAPORAL",159.6]
["2022-08-31",null,7,787500,null,"Retour Provision Olivia LAPORAL",null,159.6]
["2022-08-31",null,1,155010,"Noel employé","Retour Provision Olivia LAPORAL",144.11000000000001]
["2022-08-31",null,7,787500,null,"Retour Provision Olivia LAPORAL",null,144.11000000000001]
["2022-08-22",null,1,155002,"Sport et loisirs","Retour Provision Eric CHARTON",707]
["2022-08-22",null,7,787500,null,"Retour Provision Eric CHARTON",null,707]
["2022-08-26",null,1,155019,"voyage","Retour Provision Mylene MARTIN",1500]
["2022-08-26",null,7,787500,null,"Retour Provision Mylene MARTIN",null,1500]
["2022-08-29",null,1,155013,"voyage","Retour Provision Chrsitelle CHOUAN",1500]
["2022-08-29",null,7,787500,null,"Retour Provision Chrsitelle CHOUAN",null,1500]
["2022-08-29",null,1,155014,"Sport et loisirs","Retour Provision Camille GUYOT",1000]
["2022-08-29",null,7,787500,null,"Retour Provision Camille GUYOT",null,1000]
["2022-08-30",null,4,421001,null,"Achat FourniBuro",null,103.94]
["2022-08-30",null,4,"401001",null,"Achat FourniBuro",103.94]
["2022-08-29",null,6,647000,null,"ASC Olivia LAPORAL",880.24]
["2022-08-29",null,4,421010,"voyage","ASC Olivia LAPORAL",null,880.24]
["2022-08-31",null,6,647000,null,"ASC Olivia LAPORAL",316.05]
["2022-08-31",null,4,421010,"voyage","ASC Olivia LAPORAL",null,316.05]
["2022-08-31",null,6,647000,null,"ASC Olivia LAPORAL",159.6]
["2022-08-31",null,4,421010,"Sport et loisirs","ASC Olivia LAPORAL",null,159.6]
["2022-08-31",null,6,647000,null,"ASC Olivia LAPORAL",144.11000000000001]
["2022-08-31",null,4,421010,"Noel employé","ASC Olivia LAPORAL",null,144.11000000000001]
["2022-08-22",null,6,647000,null,"ASC Eric CHARTON",707]
["2022-08-22",null,4,421002,"Sport et loisirs","ASC Eric CHARTON",null,707]
["2022-08-26",null,6,647000,null,"ASC Mylene MARTIN",1500]
["2022-08-26",null,4,421019,"voyage","ASC Mylene MARTIN",null,1500]
["2022-08-29",null,6,647000,null,"ASC Chrsitelle CHOUAN",1500]
["2022-08-29",null,4,421013,"voyage","ASC Chrsitelle CHOUAN",null,1500]
["2022-08-29",null,6,647000,null,"ASC Camille GUYOT",1000]
["2022-08-29",null,4,421014,"Sport et loisirs","ASC Camille GUYOT",null,1000]
["2022-09-02",null,1,155021,"voyage","Retour Provision Max NOSIBOR",1500]
["2022-09-02",null,7,787500,null,"Retour Provision Max NOSIBOR",null,1500]
["2022-09-02",null,6,647000,null,"ASC Max NOSIBOR",1500]
["2022-09-02",null,4,421021,"voyage","ASC Max NOSIBOR",null,1500]
["2022-09-05",null,1,155009,"voyage","Retour Provision Eddy LORBEL",1500]
["2022-09-05",null,7,787500,null,"Retour Provision Eddy LORBEL",null,1500]
["2022-09-05",null,6,647000,null,"ASC Eddy LORBEL",1500]
["2022-09-05",null,4,421009,"voyage","ASC Eddy LORBEL",null,1500]
["2022-09-06",null,1,155012,"voyage","Retour Provision Lydia Thalmsensi",1126.6300000000001,null," "]
["2022-09-06",null,7,787500,null,"Retour Provision Lydia Thalmsensi",null,1126.6300000000001]
["2022-09-06",null,6,647000,null,"ASC Lydia Thalmsensi",1126.6300000000001]
["2022-09-06",null,4,421012,"voyage","ASC Lydia Thalmsensi",null,1126.6300000000001]
["2022-09-19",null,1,155023,"Sport et loisirs","Retour Provision ANAIS LERUS",174.55]
["2022-09-19",null,7,787500,null,"Retour Provision ANAIS LERUS",null,174.55]
["2022-09-19",null,6,647000,null,"ASC ANAIS LERUS",174.55]
["2022-09-19",null,4,421023,"Sport et loisirs","ASC ANAIS LERUS",null,174.55]
["2022-09-19",null,1,155023,"voyage","Retour Provision ANAIS LERUS",1325.45]
["2022-09-19",null,7,787500,null,"Retour Provision ANAIS LERUS",null,1325.45]
["2022-09-19",null,6,647000,null,"ASC ANAIS LERUS",1325.45]
["2022-09-19",null,4,421023,"voyage","ASC ANAIS LERUS",null,1325.45]
["2022-11-03",null,1,155016,"voyage","Retour Provision Guy RAMALINGON",1500]
["2022-11-03",null,7,787500,null,"Retour Provision Guy RAMALINGON",null,1500," "]
["2022-11-03",null,6,647000,null,"ASC Guy RAMALINGON",1500]
["2022-11-03",null,4,421016,"voyage","ASC Guy RAMALINGON",null,1500]
["2022-11-04",null,1,155002,"Sport et loisirs","Retour Provision Eric CHARTON",400]
["2022-11-04",null,7,787500,null,"Retour Provision Eric CHARTON",null,400]
["2022-11-04",null,6,647000,null,"ASC Eric CHARTON",400]
["2022-11-04",null,4,421002,"Sport et loisirs","ASC Eric CHARTON",null,400]
["2022-11-10",null,1,155017,"voyage","Retour Provision Raissa LUSINE",1000]
["2022-11-10",null,7,787500,null,"Retour Provision Raissa LUSINE",null,1000]
["2022-11-10",null,6,647000,null,"ASC Raissa LUSINE",1000]
["2022-11-10",null,4,421017,"voyage","ASC Raissa LUSINE",null,1000," "]
[]
[]
[]
[]
[]
[]
[]
[null,null,null,null,null,null,null,null," "]
[]
[]
[]
[]
[]
[]
[]
[]
[]
[]
[]
[]
[]
[]
[]
[]
[]
[]
[]
[]
[]
[]
[]
[]
[]
[]
[]
[]
[]
[]
[]
[]
[]
[]
[]
[]
[]
[]
[]
[]
[]
[]
[]
[]
[]
[]
[]
[]
[]
[]
[]
[]
[]
[]
[]
[]
[]
[]
[]
[]
[]
[]
[]
[]
[]
[]
[]
[]
[]
[]
[]
[]
[]
[]
[]
[]
[]
[]
[]
[]
[]
[]
[]
[]
[]
[]
[]
[]
[]
[]
[]
[]
[]
[]
[]
[]
[]
[]
[]
[]
[]
[]
[]
[]
[]
[]
[]
[]
[]
[]
[]
[]
[]
[]
[]
[]
[]
[]
[]
[]
[]
[]
[]
[]
[]
[]
[]
[]
[]
[]
[]
[]
[]
[]
[]
[]
[]
[]
[]
[]
[]
[]
[]
[]
[]
[]
[]
[]
[]
[]
[]
[]
[]
[]
[]
[]
[]
[]
[]
[]
[]
[]
[]
[]
[]
[]
[]
[]
[]
[]
[]
[]
[]
[]
[]
[]
[null,null,null,null,null,null,{"$f":"SUM(G172:G307)","v":0},{"$f":"SUM(H172:H307)","v":0}]

{"sheet":"Ventes","index":9,"n_rows":26,"n_cols":23,"rows_kept":26,"cut":false,"hidden":true,"merged":[]}
[null,null,null,null,null,null,null,null,null,null,null,{"$f":"A1","v":"00:00:00"},null,{"$f":"C1","v":0},{"$f":"D1","v":0},{"$f":"E1","v":0},{"$f":"F1","v":0},null,{"$f":"G1","v":0}]
[null,null,null,null,null,null,null,null,null,null,null,{"$f":"L1","v":"00:00:00"},null,5,512100,{"$f":"P1","v":0},{"$f":"Q1","v":0},{"$f":"S1","v":0},null,null,150,null,{"$f":"U2","v":150}]
[null,null,null,null,null,null,null,null,null,null,null,null,null,null,null,null,null,null,null,null,null,{"$f":"U2-V4","v":120.6}]
[null,null,null,null,null,null,null,null,null,null,null,{"$f":"A4","v":"00:00:00"},null,{"$f":"C4","v":0},{"$f":"D4","v":0},{"$f":"E4","v":0},{"$f":"F4","v":0},null,{"$f":"G4","v":0},null,null,{"$f":"(U2/100)*19.6","v":29.400000000000002}]
[null,null,null,null,null,null,null,null,null,null,null,{"$f":"L4","v":"00:00:00"},null,5,512100,{"$f":"P4","v":0},{"$f":"Q4","v":0},{"$f":"S4","v":0}]
[]
[null,null,null,null,null,null,null,null,null,null,null,{"$f":"A7","v":"00:00:00"},null,{"$f":"C7","v":0},{"$f":"D7","v":0},{"$f":"E7","v":0},{"$f":"F7","v":0},null,{"$f":"G7","v":0}]
[null,null,null,null,null,null,null,null,null,null,null,{"$f":"L7","v":"00:00:00"},null,5,512100,{"$f":"P7","v":0},{"$f":"Q7","v":0},{"$f":"S7","v":0}]
[null,null,null,null,null,null,null,null,null," "]
[null,null,null,null,null,null,null,null,null,null,null,{"$f":"A10","v":"00:00:00"},null,{"$f":"C10","v":0},{"$f":"D10","v":0},{"$f":"E10","v":0},{"$f":"F10","v":0},null,{"$f":"G10","v":0}]
[null,null,null,null,null,null,null,null,null,null,null,{"$f":"L10","v":"00:00:00"},null,5,512100,{"$f":"P10","v":0},{"$f":"Q10","v":0},{"$f":"S10","v":0}]
[]
[null,null,null,null,null,null,null,null,null,null,null,{"$f":"A13","v":"00:00:00"},null,{"$f":"C13","v":0},{"$f":"D13","v":0},{"$f":"E13","v":0},{"$f":"F13","v":0},null,{"$f":"G13","v":0}]
[null,null,null,null,null,null,null,null,null,null,null,{"$f":"L13","v":"00:00:00"},null,5,512100,{"$f":"P13","v":0},{"$f":"Q13","v":0},{"$f":"S13","v":0}]
[]
[null,null,null,null,null,null,null,null,null,null,null,{"$f":"A16","v":"00:00:00"},null,{"$f":"C16","v":0},{"$f":"D16","v":0},{"$f":"E16","v":0},{"$f":"F16","v":0},null,{"$f":"G16","v":0}]
[null,null,null,null,null,null,null,null,null,null,null,{"$f":"L16","v":"00:00:00"},null,5,512100,{"$f":"P16","v":0},{"$f":"Q16","v":0},{"$f":"S16","v":0}]
[]
[null,null,null,null,null,null,null,null,null,null,null,{"$f":"A19","v":"00:00:00"},null,{"$f":"C19","v":0},{"$f":"D19","v":0},{"$f":"E19","v":0},{"$f":"F19","v":0},null,{"$f":"G19","v":0}]
[null,null,null,null,null,null,null,null,null,null,null,{"$f":"L19","v":"00:00:00"},null,5,512100,{"$f":"P19","v":0},{"$f":"Q19","v":0},{"$f":"S19","v":0}]
[]
[]
[]
[]
[]
[null,null,null,null,null,null,{"$f":"SUM(G1:G25)","v":0},{"$f":"SUM(H1:H25)","v":0}," ",{"$f":"SUM(J1:J25)","v":0}]

{"sheet":"Achats","index":10,"n_rows":96,"n_cols":8,"rows_kept":96,"cut":false,"hidden":true,"merged":[]}
["Date opérat.","F","C","Compte","Rèf","Libéllé","Débit","Crédit"]
["2022-08-30",null,4,"401001",null,"Achat FourniBuro",null,103.94]
["2022-08-30",null,6,"606400",null,"Achat FourniBuro",103.94]
[]
[]
[]
[]
[]
[]
[]
[]
[]
[]
[]
[]
[]
[]
[]
[]
[]
[]
[]
[]
[]
[]
[]
[]
[]
[]
[]
[]
[]
[]
[]
[]
[]
[]
[]
[]
[]
[]
[]
[]
[]
[]
[]
[]
[]
[]
[]
[]
[]
[]
[]
[]
[]
[]
[]
[]
[]
[]
[]
[]
[]
[]
[]
[]
[]
[]
[]
[]
[]
[]
[]
[]
[]
[]
[]
[]
[]
[]
[]
[]
[]
[]
[]
[]
[]
[]
[]
[]
[]
[]
[]
[]
[null,null,null,null,null,null,{"$f":"SUM(G2:G95)","v":103.94},{"$f":"SUM(H2:H95)","v":103.94}]

{"sheet":"Caisse","index":11,"n_rows":43,"n_cols":9,"rows_kept":43,"cut":false,"hidden":true,"merged":[]}
[null,null,null,null,null,null,null,null,{"$f":"+H1","v":0}]
[null,null,null,null,null,null,null,null,{"$f":"+I1-G2+H2","v":0}]
[null,null,null,null,null,null,null,null,{"$f":"+I2-G3+H3","v":0}]
[null,null,null,null,null,null,null,null,0]
[null,null,null,null,null,null,null,null,0]
[null,null,null,null,null,null,null,null,0]
[null,null,null,null,null,null,null,null,0]
[null,null,null,null,null,null,null,null,0]
[null,null,null,null,null,null,null,null,0]
[null,null,null,null,null,null,null,null,0]
[null,null,null,null,null,null,null,null,0]
[null,null,null,null,null,null,null,null,0]
[null,null,null,null,null,null,null,null,0]
[null,null,null,null,null,null,null,null,0]
[null,null,null,null,null,null,null,null,0]
[null,null,null,null,null,null,null,null,0]
[null,null,null,null,null,null,null,null,0]
[null,null,null,null,null,null,null,null,0]
[null,null,null,null,null,null,null,null,0]
[null,null,null,null,null,null,null,null,0]
[null,null,null,null,null,null,null,null,0]
[null,null,null,null,null,null,null,null,0]
[null,null,null,null,null,null,null,null,0]
[null,null,null,null,null,null,null,null,0]
[null,null,null,null,null,null,null,null,0]
[null,null,null,null,null,null,null,null,0]
[null,null,null,null,null,null,null,null,0]
[null,null,null,null,null,null,null,null,0]
[]
[null,null,null,null,null,null,{"$f":"SUM(G1:G29)","v":0},{"$f":"SUM(H1:H29)","v":0},{"$f":"+H30-G30","v":0}]
[]
[]
[]
[]
[]
[]
[]
["2020-03-01",null,null,null,null,"SOLDE AU 01/03/2020",null,1203.77,{"$f":"+H38","v":1203.77}]
["2020-03-01",null,null,615000,null,"ESSENCE TONDEUSE 10/02",5,null,{"$f":"+I38-G39+H39","v":1198.77}]
["2020-03-01",null,null,"401DIV",null,"AMAZON 13/02",25.08,null,{"$f":"+I39-G40+H40","v":1173.69}]
["2020-03-01",null,null,615000,null,"CITRONS 26/02",1.5,null,{"$f":"+I40-G41+H41","v":1172.19}]
[]
[null,null,null,null,null,null,{"$f":"SUM(G38:G42)","v":31.58},{"$f":"SUM(H38:H42)","v":1203.77},{"$f":"+H43-G43","v":1172.19}]

{"sheet":"Plan","index":12,"n_rows":72,"n_cols":10,"rows_kept":72,"cut":false,"hidden":false,"merged":[[0,0,0,3]]}
["PLAN COMPTABLE   CSE Antilles Guyane"]
[]
["N°","NOM","N°","NOM",null,null,null,"155 0xx provision ASC",null,"421 0xx salariés"]
[101000,"CAPITAL SOCIAL",null,null,"00","DIVERS ACHATS","01","Yohan LASSALLE","01","Yohan LASSALLE"]
[106100,"RESERVE LEGALE",606100,"Achats materiel","01","REPARATIONS","02","Eric CHARTON","02","Eric CHARTON"]
[106800,"AUTRES RESERVES",606300,"PETIT OUTILLAGE","02","AMENAGEMENTS","03","Lydie RESON","03","Lydie RESON"]
[110000,"REPORT A NOUVEAU",606400,"FOURNITURES DE BUREAU","03","PRESSING","04","Muriel DE GENTIL","04","Muriel DE GENTIL"]
[120000,"RESULTAT DE L'EXERCICE",607000,"Achat de Marchandise","04","TELEPHONE","05","Oriane Mayoute","05","Oriane Mayoute"]
[155000,"Provision pour ASC",603700,"Variation des stocks de marchandises","05","ELECTRICITE","06","Amina ISCAYE","06","Amina ISCAYE"]
[168000,"EMPRUNT YL.LASSALLE",615000,"ENTRETIEN","06","EAU","07","Geraldine PINOS","07","Geraldine"]
[null,null,615500,"CHARGES COLLECTIVES","07","IMPOTS","08","Stephanie LUBIN","08","Stephanie LUBIN"]
[211000,"TERRAIN",616000,"ASSURANCES","08","PUBLICITE","09","Eddy LORBEL","09","Eddy LORBEL"]
[213000,"CONSTRUCTION",618000,"DOCUMENTATION GENERALE","09","ENTRETIEN","10","Olivia LAPORAL","10","Olivia LAPORAL"]
[215000,"MATERIEL ET OUTILLAGE",622600,"HONORAIRES DIVERS","10","ASSURANCES","11","Ma-Ivah BENOIT","11","Ma-Ivah BENOIT"]
[218100,"AGENCEMENTS INSTALLATION",622700,"FRAIS ACTES ET CONTENTIEUX","11","JARDINAGE","12","Lydia THALMENSI","12","Lydia THALMENSI"]
[218200,"MATERIEL DE TRANSPORT",622800,"HONORAIRES DE GESTION","12","FRAIS BANCAIRE","13","Christelle CHOUAN","13","Christelle CHOUAN"]
[218300,"MATERIEL DE BUREAU",623000,"PUBLICITE","13"," RAYM/DEDE","14","Camille GUYOT","14","Camille GUYOT"]
[275000,"DEPOT DE GARANTIE PAYE",624000,"FRAIS DE VOITURE","20","INVESTISSEMENT","15","Mireille ROCHE","15","Mireille ROCHE"]
[281300,"AMORT. CONSTRUCTION",625000,"VOYAGE ET DEPLACEMENT",null,null,"16","Guy RAMALINGON","16","Guy RAMALINGON"]
[281810,"AMORT. AGENCEMENTS INSTALLAT.",625700,"MISSIONS RECEPTIONS",null,null,"17","RAISSA LUSINE","17","RAISSA LUSINE"]
[281820,"AMORT. MATERIEL DE TRANSPORT",626000,"P.T.T. ET TIMBRES",null,null,"18","Xavier CORBIN","18","Xavier CORBIN"]
[281830,"AMORT. MATERIEL DE BUREAU",627000,"SERVICES BANCAIRES",null,null,"19","Mylene MARTIN","19","Mylene MARTIN"]
[null,null,633800,"AUTRES IMPOTS ET TAXES",null,null,"20","Johanne LONGRAIS","20","Johanne LONGRAIS"]
[null,null,635000,"IMPOT FORFAITAIRE SOCIETE",null,null,"21","Max NOSIBOR","21","Max NOSIBOR"]
[null,null,635100,"TAXE FONCIERE",null,null,"22","Maxime ANNEQUIN","22","Maxime ANNEQUIN"]
[null,null,635400,"DROITS ENREG. ET TIMBRES",null,null,"23","ANAIS LERUS","23","ANAIS LERUS"]
["401xxx","Fournisseurs",635800,"TAXE SUR BUREAUX",null,null,"24","Carla MARMOLEJO","24","Carla MARMOLEJO"]
[401001,"Fourniburo",637800,"TAXES DIVERSES",null,null,"25","EDWIN SANDOT","25","EDWIN SANDOT"]
[401002,"Marie Kate Kreation",647000,"ASC ",null,null,"26","Adelmas NESLIDE","26","Adelmas NESLIDE"]
[401003,"Carrefour Destrland",654000,"PERTES S/CREANCES IRRECOU.",null,null,"27","Guillaume SOULAS","27","Guillaume SOULAS"]
[401004,"Air Caraibes",658000,"CHARGES DIVERSES",null,null,28,"Julien LALAIT",28,"Julien LALAIT"]
[401005,"Assurance Avion",661100,"INTERETS D'EMPRUNTS",null,null,29,"Grenelle Triveillot",29,"Grenelle Triveillot"]
[401006,"Location vehicule AutoJumboCAR",661500,"INTERETS CPTES COURANTS",null,null,30,"MAILINE FIDOL",30,"MAILINE FIDOL"]
[401007,"Chronopost",661600,"INTERETS BANCAIRES",null,null,31,"Emilie GUILLAUME",31,"Emilie GUILLAUME"]
[null,null,661800,"INTERETS DES AUTRES DETTES",null,null,32,"Remplaçante Amina",32,"Remplaçante Amina"]
[null,null,668800,"ECART DE CONVERSION"]
[null,null,672000,"CHARGES S/EXERCICE ANTERIEUR"]
[null,null,681000,"DOTATIONS AMORTISSEMENTS"]
[null,null,681700,"DOT.PROV.P/DEP.ACTIFS CIRCUL."]
[403000,"FOURNISSEURS EFFET A PAYER",681500,"Provisions des Charges ASC"]
[408000,"FOURNISSEURS CHARGES A PAYER",695000,"IMPOT SOCIETE"]
[409000,"FOURNISSEURS DEBITEURS"]
[411000,"CLIENTS DIVERS"]
[414000,"AVANCES S/CHARGES RECUES","706000","LOYERS"]
[415000,"CHARGES LOCATIVES","706100","LOYERS S/REGUL DEPOT"]
[416000,"CLIENTS DOUTEUX",706500,"Vente Réparation Divers"]
[419000,"CLIENTS CREDITEURS",706600,"PRESTATIONS DIVERSES"]
[444000,"IMPOTS SUR BENEFICES",707000,"Vente de Marchandise"]
[444100,"IMPOTS S/BENEF. 10%"]
[445500,"TVA A DECAISSER","708050","AVANCES S/CHARGES COLLECTIVES"]
[445600,"TVA DEDUCTIBLE",708051,"REGUL S/CHARGES COLLECTIVES"]
[445660,"TVA DEDUC. NON REGLEE","758000","PRODUITS DIVERS"]
[445700,"TVA COLLECTEE 19.60%","764000","REVENUS TITRES PLACEMENT"]
[445710,"T.V.A. COLLECTEE 20.60%",768000,"AUTRE PRODUITS FINANCIERS"]
[445720,"T.V.A. COLLECTEE REGUL.","771800","AUTRES PRDTS EXCEP.S/OP.GEST."]
[445900,"TVA DEBIT. S/FIN EXERCICE","772000","PRDTS EXCEPT.S/EXERC.ANTERIEUR"]
[448000,"ETAT CHARGES A PAYER","781700","REP/PROV.DEPR.ACTIFS CIRCUL."]
[448700,"ETAT, PRODUITS A RECEVOIR",756010,"Subvention de fonctionnement reçue l’employeur"]
[455400,"CPTE COURANT LASSALLE YOHAN",756020,"Contribution reçue de l’employeur"]
[467000,"DEBIT. ET CREDIT. DIVERS",787500,"Reprises sur provisions exceptionnelles"]
[468600,"DEB. CRED. CHARGES A PAYER"]
[470000,"COMPTE D'ATTENTE"]
[486000,"CHARGES PAYEES D'AVANCE","840000","SOLDE D'EXPLOITATION"]
[487000,"PRDTS CONSTATES D'AVANCE","880000","RESULTAT ATTENTE AFFECT."]
[491000,"PROV.P/DEP.CPTES CLIENTS"]
[]
[508000,"AUTRES VALEURS DE PLACEMENT"]
[512000,"CREDIT AGRICOLE ASC"]
[512001,"CREDIT AGRICOLE FONCTIONNEMENT"]
[518600,"INTERETS COURUS"]
[530000,"CAISSE"]
[580000,"VIREMENTS INTERNES"]

{"sheet":"Echéancier","index":13,"n_rows":0,"n_cols":0,"rows_kept":0,"cut":false,"hidden":true,"merged":[]}

{"sheet":"NOMS","index":14,"n_rows":67,"n_cols":10,"rows_kept":67,"cut":false,"hidden":false,"merged":[]}
[155001,"Yohan LASSALLE",null,null,null,155001]
[155002,"Eric CHARTON",null,null,null,155002]
[155003,"Lydie RESON",null,null,null,155003]
[155004,"Muriel DE GENTIL",null,null,null,155004]
[155005,"Oriane Mayoute",null,null,null,155005]
[155006,"Amina ISCAYE",null,null,null,155007]
[155007,"Geraldine PINOS",null,null,null,155008]
[155008,"Stephanie LUBIN",null,null,null,155009]
[155009,"Eddy LORBEL",null,null,null,155010]
[155010,"Olivia LAPORAL",null,null,null,155011]
[155011,"Ma-Ivah BENOIT",null,null,null,155012]
[155012,"Lydia THALMENSI",null,null,null,155013]
[155013,"Christelle CHOUAN",null,null,null,155015]
[155014,"Camille GUYOT",null,null,null,155017]
[155015,"Mireille ROCHE",null,null,null,155018]
[155016,"Guy RAMALINGON",null,null,null,155019]
[155017,"RAISSA LUSINE",null,null,null,155020]
[155018,"Xavier CORBIN",null,null,null,155021]
[155019,"Mylene MARTIN",null,null,null,155022]
[155020,"Johanne LONGRAIS",null,null,null,155023]
[155021,"Max NOSIBOR",null,null,null,155025]
[155022,"Maxime ANNEQUIN",null,null,null,155027]
[155023,"ANAIS LERUS",null,null,null,155028]
[155024,"Carla MARMOLEJO",null,null,null,155029]
[155025,"EDWIN SANDOT",null,null,null,155030]
[155026,"Adelmas NESLIDE",null,null,null,155031]
[155027,"Guillaume SOULAS",null,null,null,155032]
[155028,"Julien LALAIT"]
[155029,"Grenelle Triveillot"]
[155030,"MAILINE FIDOL"]
[155031,"Emilie GUILLAUME"]
[155032,"Remplaçante Amina","Arrivée dans l'entreprise le ",null,"2024-02-01"]
[]
[]
[]
[null,null,null,null,null,null,null,null,421001,"Yohan LASSALLE"]
[null,null,null,null,null,null,null,null,421002,"Eric CHARTON"]
[null,null,null,null,null,null,null,null,421003,"Lydie RESON"]
[null,null,null,null,null,null,null,null,421004,"Muriel DE GENTIL"]
[null,null,null,null,null,null,null,null,421005,"Oriane Mayoute"]
[null,null,null,null,null,null,null,null,421006,"Amina ISCAYE"]
[null,null,null,null,null,null,null,null,421007,"Geraldine PINOS"]
[null,null,null,null,null,null,null,null,421008,"Stephanie LUBIN"]
[null,null,null,null,null,null,null,null,421009,"Eddy LORBEL"]
[null,null,null,null,null,null,null,null,421010,"Olivia LAPORAL"]
[null,null,null,null,null,null,null,null,421011,"Ma-Ivah BENOIT"]
[null,null,null,null,null,null,null,null,421012,"Lydia THALMENSI"]
[null,null,null,null,null,null,null,null,421013,"Christelle CHOUAN"]
[null,null,null,null,null,null,null,null,421014,"Camille GUYOT"]
[null,null,null,null,null,null,null,null,421015,"Mireille ROCHE"]
[null,null,null,null,null,null,null,null,421016,"Guy RAMALINGON"]
[null,null,null,null,null,null,null,null,421017,"RAISSA LUSINE"]
[null,null,null,null,null,null,null,null,421018,"Xavier CORBIN"]
[null,null,null,null,null,null,null,null,421019,"Mylene MARTIN"]
[null,null,null,null,null,null,null,null,421020,"Johanne LONGRAIS"]
[null,null,"Arrivée dans l'entreprise le ",null,null,null,null,null,421021,"Max NOSIBOR"]
[null,null,"Arrivée dans l'entreprise le ",null,null,null,null,null,421022,"Maxime ANNEQUIN"]
[null,null,"Arrivée dans l'entreprise le ",null,null,null,null,null,421023,"ANAIS LERUS"]
[null,null,"Arrivée dans l'entreprise le ",null,"2022-10-01",null,null,null,421024,"Carla MARMOLEJO"]
[null,null,"Arrivée dans l'entreprise le ",null,null,null,null,null,421025,"EDWIN SANDOT"]
[null,null,null,null,null,null,null,null,421026,"Adelmas NESLIDE"]
[null,null,null,null,null,null,null,null,421027,"Guillaume SOULAS"]
[null,null,null,null,null,null,null,null,421028,"Julien LALAIT"]
[null,null,null,null,null,null,null,null,421029,"Grenelle Triveillot"]
[null,null,null,null,null,null,null,null,421030,"MAILINE FIDOL"]
[null,null,null,null,null,null,null,null,421031,"Emilie GUILLAUME"]
[null,null,null,null,null,null,null,null,421032,"Remplaçante Amina"]

{"sheet":"CALCUL divers","index":15,"n_rows":48,"n_cols":9,"rows_kept":48,"cut":false,"hidden":false,"merged":[]}
[]
[]
[]
[]
[]
[]
[]
[]
[]
[null,null,"Voiture de location",191,null,null,null,null,43.99]
[null,null,"Billet d'avion ",362.83,null,null,null,null,43.99]
[null,null,"Hôtel Beach view",400.53,null,null,null,null,43.99]
[null,null,"Hôtel South Gap",208.57,null,null,null,null,{"$f":"SUM(I10:I12)","v":131.97}]
[null,null,"Hôtel Sweetfield Manor",245.62]
[null,null,"Hôtel La Pagerie",202.4]
[null,null,"Facture Airbnb",216.67]
[null,null,"Facture la Ferme Attitude",150]
[null,null,null,{"$f":"SUM(D10:D17)","v":1977.62}]
[]
[]
[]
[null,null,"Spectable GSL humoriste",70,null,{"$f":"2000-D18","v":22.380000000000109}]
[null,null,"Spectacle FARY humoriste",92.26]
[null,null,null,{"$f":"SUM(D22:D23)","v":162.26}]
[]
[]
[]
[]
[]
[]
[null,null,"Visite Harrisson Cave",156.63999999999999]
[]
[]
[]
[null,null,null,null,null,null,259.17]
[]
[]
[]
[null,null,null,null,null,31.05,757.44]
[null,null,null,null,null,31.05,164.16]
[null,null,null,null,null,25,25.2]
[null,null,null,null,null,{"$f":"SUM(F39:F41)","v":87.1},{"$f":"SUM(G39:G41)","v":946.80000000000007}]
[]
[null,null,null,null,42,null,{"$f":"G42+F42","v":1033.9000000000001}]
[null,null,null,null,42]
[null,null,null,null,32]
[null,null,null,null,32]
[null,null,null,null,{"$f":"SUM(E44:E47)","v":148}]

{"sheet":"Programme","index":16,"n_rows":32,"n_cols":7,"rows_kept":32,"cut":false,"hidden":false,"merged":[]}
["2023-12-29","\nVIREMENT EMIS MIREILLE ROCHE ASC 2023 Voyage",776,"Mireille ROCHE",{"$f":"VLOOKUP(D1,Plan!H4:I43,2,FALSE)","v":"15"},"Voyage","*"]
[]
[]
[]
[]
[null,null,null,"Retour Provision Eric CHARTON"]
[null,null,null,"Retour Provision Eric CHARTON"]
[null,null,null,"ASC Eric CHARTON"]
[null,null,null,"ASC Eric CHARTON"]
[null,null,null,"ASC Eric CHARTON"]
[null,null,null,"ASC Eric CHARTON"]
[]
[]
[]
[null,null,null,"Retour Provision Eric CHARTON"]
[null,null,null,"Retour Provision Eric CHARTON"]
[null,null,null,"ASC Eric CHARTON"]
[null,null,null,"ASC Eric CHARTON"]
[null,null,null,"ASC Eric CHARTON"]
[null,null,null,"ASC Eric CHARTON"]
[]
[]
[]
[]
[null,null,null,"Voyage"]
[null,null,null,"Culture"]
[null,null,null,"Garde enfants"]
[null,null,null,"Sport et loisirs"]
[null,null,null,"NOEL SALARIE"]
[null,null,null,"NOEL enfant1"]
[null,null,null,"NOEL enfant2"]
[null,null,null,"NOEL enfant 3"]